Workbook

Sheet Sheet1
A1: Base Radius | B1: Distance | C1: Loops | D1: Counter
A2: 0 | B2: 5 | C2: 5 | D2: 7

Sheet Sheet5
A1: =(16 + 0)*(SIN(1)*SIN(1)*SIN(1)) -> 9.533171785 | B1: =(13 + 0) * COS(1)-5*COS(2*1)-2*COS(3*1)-COS(4*1) -> 11.73829277 | C1: =(16 + 5)*(SIN(1)*SIN(1)*SIN(1)) -> 12.51228797 | D1: =(13 + 5) * COS(1)-5*COS(2*1)-2*COS(3*1)-COS(4*1) -> 14.4398043 | E1: =(16 + 10)*(SIN(1)*SIN(1)*SIN(1)) -> 15.49140415 | F1: =(13 + 10) * COS(1)-5*COS(2*1)-2*COS(3*1)-COS(4*1) -> 17.14131583 | G1: =(16 + 15)*(SIN(1)*SIN(1)*SIN(1)) -> 18.47052033 | H1: =(13 + 15) * COS(1)-5*COS(2*1)-2*COS(3*1)-COS(4*1) -> 19.84282736 | I1: =(16 + 20)*(SIN(1)*SIN(1)*SIN(1)) -> 21.44963652 | J1: =(13 + 20) * COS(1)-5*COS(2*1)-2*COS(3*1)-COS(4*1) -> 22.54433889
A2: =(16 + 0)*(SIN(1.1)*SIN(1.1)*SIN(1.1)) -> 11.3254711 | B2: =(13 + 0) * COS(1.1)-5*COS(2*1.1)-2*COS(3*1.1)-COS(4*1.1) -> 11.12154757 | C2: =(16 + 5)*(SIN(1.1)*SIN(1.1)*SIN(1.1)) -> 14.86468082 | D2: =(13 + 5) * COS(1.1)-5*COS(2*1.1)-2*COS(3*1.1)-COS(4*1.1) -> 13.38952818 | E2: =(16 + 10)*(SIN(1.1)*SIN(1.1)*SIN(1.1)) -> 18.40389053 | F2: =(13 + 10) * COS(1.1)-5*COS(2*1.1)-2*COS(3*1.1)-COS(4*1.1) -> 15.65750879 | G2: =(16 + 15)*(SIN(1.1)*SIN(1.1)*SIN(1.1)) -> 21.94310025 | H2: =(13 + 15) * COS(1.1)-5*COS(2*1.1)-2*COS(3*1.1)-COS(4*1.1) -> 17.9254894 | I2: =(16 + 20)*(SIN(1.1)*SIN(1.1)*SIN(1.1)) -> 25.48230997 | J2: =(13 + 20) * COS(1.1)-5*COS(2*1.1)-2*COS(3*1.1)-COS(4*1.1) -> 20.19347
A3: =(16 + 0)*(SIN(1.2)*SIN(1.2)*SIN(1.2)) -> 12.9545508 | B3: =(13 + 0) * COS(1.2)-5*COS(2*1.2)-2*COS(3*1.2)-COS(4*1.2) -> 10.10363724 | C3: =(16 + 5)*(SIN(1.2)*SIN(1.2)*SIN(1.2)) -> 17.00284793 | D3: =(13 + 5) * COS(1.2)-5*COS(2*1.2)-2*COS(3*1.2)-COS(4*1.2) -> 11.91542601 | E3: =(16 + 10)*(SIN(1.2)*SIN(1.2)*SIN(1.2)) -> 21.05114506 | F3: =(13 + 10) * COS(1.2)-5*COS(2*1.2)-2*COS(3*1.2)-COS(4*1.2) -> 13.72721478 | G3: =(16 + 15)*(SIN(1.2)*SIN(1.2)*SIN(1.2)) -> 25.09944218 | H3: =(13 + 15) * COS(1.2)-5*COS(2*1.2)-2*COS(3*1.2)-COS(4*1.2) -> 15.53900355 | I3: =(16 + 20)*(SIN(1.2)*SIN(1.2)*SIN(1.2)) -> 29.14773931 | J3: =(13 + 20) * COS(1.2)-5*COS(2*1.2)-2*COS(3*1.2)-COS(4*1.2) -> 17.35079232
A4: =(16 + 0)*(SIN(1.3)*SIN(1.3)*SIN(1.3)) -> 14.31376286 | B4: =(13 + 0) * COS(1.3)-5*COS(2*1.3)-2*COS(3*1.3)-COS(4*1.3) -> 8.745276476 | C4: =(16 + 5)*(SIN(1.3)*SIN(1.3)*SIN(1.3)) -> 18.78681376 | D4: =(13 + 5) * COS(1.3)-5*COS(2*1.3)-2*COS(3*1.3)-COS(4*1.3) -> 10.08277062 | E4: =(16 + 10)*(SIN(1.3)*SIN(1.3)*SIN(1.3)) -> 23.25986465 | F4: =(13 + 10) * COS(1.3)-5*COS(2*1.3)-2*COS(3*1.3)-COS(4*1.3) -> 11.42026476 | G4: =(16 + 15)*(SIN(1.3)*SIN(1.3)*SIN(1.3)) -> 27.73291554 | H4: =(13 + 15) * COS(1.3)-5*COS(2*1.3)-2*COS(3*1.3)-COS(4*1.3) -> 12.75775891 | I4: =(16 + 20)*(SIN(1.3)*SIN(1.3)*SIN(1.3)) -> 32.20596644 | J4: =(13 + 20) * COS(1.3)-5*COS(2*1.3)-2*COS(3*1.3)-COS(4*1.3) -> 14.09525305
A5: =(16 + 0)*(SIN(1.4)*SIN(1.4)*SIN(1.4)) -> 15.31169985 | B5: =(13 + 0) * COS(1.4)-5*COS(2*1.4)-2*COS(3*1.4)-COS(4*1.4) -> 7.125640325 | C5: =(16 + 5)*(SIN(1.4)*SIN(1.4)*SIN(1.4)) -> 20.09660605 | D5: =(13 + 5) * COS(1.4)-5*COS(2*1.4)-2*COS(3*1.4)-COS(4*1.4) -> 7.97547604 | E5: =(16 + 10)*(SIN(1.4)*SIN(1.4)*SIN(1.4)) -> 24.88151226 | F5: =(13 + 10) * COS(1.4)-5*COS(2*1.4)-2*COS(3*1.4)-COS(4*1.4) -> 8.825311754 | G5: =(16 + 15)*(SIN(1.4)*SIN(1.4)*SIN(1.4)) -> 29.66641846 | H5: =(13 + 15) * COS(1.4)-5*COS(2*1.4)-2*COS(3*1.4)-COS(4*1.4) -> 9.675147469 | I5: =(16 + 20)*(SIN(1.4)*SIN(1.4)*SIN(1.4)) -> 34.45132466 | J5: =(13 + 20) * COS(1.4)-5*COS(2*1.4)-2*COS(3*1.4)-COS(4*1.4) -> 10.52498318
A6: =(16 + 0)*(SIN(1.5)*SIN(1.5)*SIN(1.5)) -> 15.88006031 | B6: =(13 + 0) * COS(1.5)-5*COS(2*1.5)-2*COS(3*1.5)-COS(4*1.5) -> 5.330967417 | C6: =(16 + 5)*(SIN(1.5)*SIN(1.5)*SIN(1.5)) -> 20.84257916 | D6: =(13 + 5) * COS(1.5)-5*COS(2*1.5)-2*COS(3*1.5)-COS(4*1.5) -> 5.684653425 | E6: =(16 + 10)*(SIN(1.5)*SIN(1.5)*SIN(1.5)) -> 25.805098 | F6: =(13 + 10) * COS(1.5)-5*COS(2*1.5)-2*COS(3*1.5)-COS(4*1.5) -> 6.038339434 | G6: =(16 + 15)*(SIN(1.5)*SIN(1.5)*SIN(1.5)) -> 30.76761685 | H6: =(13 + 15) * COS(1.5)-5*COS(2*1.5)-2*COS(3*1.5)-COS(4*1.5) -> 6.392025442 | I6: =(16 + 20)*(SIN(1.5)*SIN(1.5)*SIN(1.5)) -> 35.7301357 | J6: =(13 + 20) * COS(1.5)-5*COS(2*1.5)-2*COS(3*1.5)-COS(4*1.5) -> 6.74571145
A7: =(16 + 0)*(SIN(1.6)*SIN(1.6)*SIN(1.6)) -> 15.97954167 | B7: =(13 + 0) * COS(1.6)-5*COS(2*1.6)-2*COS(3*1.6)-COS(4*1.6) -> 3.443697203 | C7: =(16 + 5)*(SIN(1.6)*SIN(1.6)*SIN(1.6)) -> 20.97314844 | D7: =(13 + 5) * COS(1.6)-5*COS(2*1.6)-2*COS(3*1.6)-COS(4*1.6) -> 3.297699592 | E7: =(16 + 10)*(SIN(1.6)*SIN(1.6)*SIN(1.6)) -> 25.96675522 | F7: =(13 + 10) * COS(1.6)-5*COS(2*1.6)-2*COS(3*1.6)-COS(4*1.6) -> 3.15170198 | G7: =(16 + 15)*(SIN(1.6)*SIN(1.6)*SIN(1.6)) -> 30.96036199 | H7: =(13 + 15) * COS(1.6)-5*COS(2*1.6)-2*COS(3*1.6)-COS(4*1.6) -> 3.005704369 | I7: =(16 + 20)*(SIN(1.6)*SIN(1.6)*SIN(1.6)) -> 35.95396876 | J7: =(13 + 20) * COS(1.6)-5*COS(2*1.6)-2*COS(3*1.6)-COS(4*1.6) -> 2.859706757
A8: =(16 + 0)*(SIN(1.7)*SIN(1.7)*SIN(1.7)) -> 15.60323645 | B8: =(13 + 0) * COS(1.7)-5*COS(2*1.7)-2*COS(3*1.7)-COS(4*1.7) -> 1.533659561 | C8: =(16 + 5)*(SIN(1.7)*SIN(1.7)*SIN(1.7)) -> 20.47924785 | D8: =(13 + 5) * COS(1.7)-5*COS(2*1.7)-2*COS(3*1.7)-COS(4*1.7) -> 0.8894370898 | E8: =(16 + 10)*(SIN(1.7)*SIN(1.7)*SIN(1.7)) -> 25.35525924 | F8: =(13 + 10) * COS(1.7)-5*COS(2*1.7)-2*COS(3*1.7)-COS(4*1.7) -> 0.2452146183 | G8: =(16 + 15)*(SIN(1.7)*SIN(1.7)*SIN(1.7)) -> 30.23127063 | H8: =(13 + 15) * COS(1.7)-5*COS(2*1.7)-2*COS(3*1.7)-COS(4*1.7) -> -0.3990078532 | I8: =(16 + 20)*(SIN(1.7)*SIN(1.7)*SIN(1.7)) -> 35.10728202 | J8: =(13 + 20) * COS(1.7)-5*COS(2*1.7)-2*COS(3*1.7)-COS(4*1.7) -> -1.043230325
A9: =(16 + 0)*(SIN(1.8)*SIN(1.8)*SIN(1.8)) -> 14.77722952 | B9: =(13 + 0) * COS(1.8)-5*COS(2*1.8)-2*COS(3*1.8)-COS(4*1.8) -> -0.3475722158 | C9: =(16 + 5)*(SIN(1.8)*SIN(1.8)*SIN(1.8)) -> 19.39511375 | D9: =(13 + 5) * COS(1.8)-5*COS(2*1.8)-2*COS(3*1.8)-COS(4*1.8) -> -1.483582689 | E9: =(16 + 10)*(SIN(1.8)*SIN(1.8)*SIN(1.8)) -> 24.01299797 | F9: =(13 + 10) * COS(1.8)-5*COS(2*1.8)-2*COS(3*1.8)-COS(4*1.8) -> -2.619593163 | G9: =(16 + 15)*(SIN(1.8)*SIN(1.8)*SIN(1.8)) -> 28.6308822 | H9: =(13 + 15) * COS(1.8)-5*COS(2*1.8)-2*COS(3*1.8)-COS(4*1.8) -> -3.755603636 | I9: =(16 + 20)*(SIN(1.8)*SIN(1.8)*SIN(1.8)) -> 33.24876642 | J9: =(13 + 20) * COS(1.8)-5*COS(2*1.8)-2*COS(3*1.8)-COS(4*1.8) -> -4.89161411
A10: =(16 + 0)*(SIN(1.9)*SIN(1.9)*SIN(1.9)) -> 13.55834322 | B10: =(13 + 0) * COS(1.9)-5*COS(2*1.9)-2*COS(3*1.9)-COS(4*1.9) -> -2.168611222 | C10: =(16 + 5)*(SIN(1.9)*SIN(1.9)*SIN(1.9)) -> 17.79532548 | D10: =(13 + 5) * COS(1.9)-5*COS(2*1.9)-2*COS(3*1.9)-COS(4*1.9) -> -3.785059056 | E10: =(16 + 10)*(SIN(1.9)*SIN(1.9)*SIN(1.9)) -> 22.03230774 | F10: =(13 + 10) * COS(1.9)-5*COS(2*1.9)-2*COS(3*1.9)-COS(4*1.9) -> -5.401506891 | G10: =(16 + 15)*(SIN(1.9)*SIN(1.9)*SIN(1.9)) -> 26.26928999 | H10: =(13 + 15) * COS(1.9)-5*COS(2*1.9)-2*COS(3*1.9)-COS(4*1.9) -> -7.017954725 | I10: =(16 + 20)*(SIN(1.9)*SIN(1.9)*SIN(1.9)) -> 30.50627225 | J10: =(13 + 20) * COS(1.9)-5*COS(2*1.9)-2*COS(3*1.9)-COS(4*1.9) -> -8.634402559
A11: =(16 + 0)*(SIN(2)*SIN(2)*SIN(2)) -> 12.02923111 | B11: =(13 + 0) * COS(2)-5*COS(2*2)-2*COS(3*2)-COS(4*2) -> -3.91653131 | C11: =(16 + 5)*(SIN(2)*SIN(2)*SIN(2)) -> 15.78836584 | D11: =(13 + 5) * COS(2)-5*COS(2*2)-2*COS(3*2)-COS(4*2) -> -5.997265493 | E11: =(16 + 10)*(SIN(2)*SIN(2)*SIN(2)) -> 19.54750056 | F11: =(13 + 10) * COS(2)-5*COS(2*2)-2*COS(3*2)-COS(4*2) -> -8.077999676 | G11: =(16 + 15)*(SIN(2)*SIN(2)*SIN(2)) -> 23.30663528 | H11: =(13 + 15) * COS(2)-5*COS(2*2)-2*COS(3*2)-COS(4*2) -> -10.15873386 | I11: =(16 + 20)*(SIN(2)*SIN(2)*SIN(2)) -> 27.06577001 | J11: =(13 + 20) * COS(2)-5*COS(2*2)-2*COS(3*2)-COS(4*2) -> -12.23946804
A12: =(16 + 0)*(SIN(2.1)*SIN(2.1)*SIN(2.1)) -> 10.2912568 | B12: =(13 + 0) * COS(2.1)-5*COS(2*2.1)-2*COS(3*2.1)-COS(4*2.1) -> -5.592123872 | C12: =(16 + 5)*(SIN(2.1)*SIN(2.1)*SIN(2.1)) -> 13.50727455 | D12: =(13 + 5) * COS(2.1)-5*COS(2*2.1)-2*COS(3*2.1)-COS(4*2.1) -> -8.116354395 | E12: =(16 + 10)*(SIN(2.1)*SIN(2.1)*SIN(2.1)) -> 16.7232923 | F12: =(13 + 10) * COS(2.1)-5*COS(2*2.1)-2*COS(3*2.1)-COS(4*2.1) -> -10.64058492 | G12: =(16 + 15)*(SIN(2.1)*SIN(2.1)*SIN(2.1)) -> 19.93931005 | H12: =(13 + 15) * COS(2.1)-5*COS(2*2.1)-2*COS(3*2.1)-COS(4*2.1) -> -13.16481544 | I12: =(16 + 20)*(SIN(2.1)*SIN(2.1)*SIN(2.1)) -> 23.1553278 | J12: =(13 + 20) * COS(2.1)-5*COS(2*2.1)-2*COS(3*2.1)-COS(4*2.1) -> -15.68904596
A13: =(16 + 0)*(SIN(2.2)*SIN(2.2)*SIN(2.2)) -> 8.455791392 | B13: =(13 + 0) * COS(2.2)-5*COS(2*2.2)-2*COS(3*2.2)-COS(4*2.2) -> -7.203222344 | C13: =(16 + 5)*(SIN(2.2)*SIN(2.2)*SIN(2.2)) -> 11.0982262 | D13: =(13 + 5) * COS(2.2)-5*COS(2*2.2)-2*COS(3*2.2)-COS(4*2.2) -> -10.14572793 | E13: =(16 + 10)*(SIN(2.2)*SIN(2.2)*SIN(2.2)) -> 13.74066101 | F13: =(13 + 10) * COS(2.2)-5*COS(2*2.2)-2*COS(3*2.2)-COS(4*2.2) -> -13.08823352 | G13: =(16 + 15)*(SIN(2.2)*SIN(2.2)*SIN(2.2)) -> 16.38309582 | H13: =(13 + 15) * COS(2.2)-5*COS(2*2.2)-2*COS(3*2.2)-COS(4*2.2) -> -16.0307391 | I13: =(16 + 20)*(SIN(2.2)*SIN(2.2)*SIN(2.2)) -> 19.02553063 | J13: =(13 + 20) * COS(2.2)-5*COS(2*2.2)-2*COS(3*2.2)-COS(4*2.2) -> -18.97324469
A14: =(16 + 0)*(SIN(2.3)*SIN(2.3)*SIN(2.3)) -> 6.634703489 | B14: =(13 + 0) * COS(2.3)-5*COS(2*2.3)-2*COS(3*2.3)-COS(4*2.3) -> -8.757432221 | C14: =(16 + 5)*(SIN(2.3)*SIN(2.3)*SIN(2.3)) -> 8.708048329 | D14: =(13 + 5) * COS(2.3)-5*COS(2*2.3)-2*COS(3*2.3)-COS(4*2.3) -> -12.08881233 | E14: =(16 + 10)*(SIN(2.3)*SIN(2.3)*SIN(2.3)) -> 10.78139317 | F14: =(13 + 10) * COS(2.3)-5*COS(2*2.3)-2*COS(3*2.3)-COS(4*2.3) -> -15.42019243 | G14: =(16 + 15)*(SIN(2.3)*SIN(2.3)*SIN(2.3)) -> 12.85473801 | H14: =(13 + 15) * COS(2.3)-5*COS(2*2.3)-2*COS(3*2.3)-COS(4*2.3) -> -18.75157254 | I14: =(16 + 20)*(SIN(2.3)*SIN(2.3)*SIN(2.3)) -> 14.92808285 | J14: =(13 + 20) * COS(2.3)-5*COS(2*2.3)-2*COS(3*2.3)-COS(4*2.3) -> -22.08295265
A15: =(16 + 0)*(SIN(2.4)*SIN(2.4)*SIN(2.4)) -> 4.930886711 | B15: =(13 + 0) * COS(2.4)-5*COS(2*2.4)-2*COS(3*2.4)-COS(4*2.4) -> -10.25562799 | C15: =(16 + 5)*(SIN(2.4)*SIN(2.4)*SIN(2.4)) -> 6.471788808 | D15: =(13 + 5) * COS(2.4)-5*COS(2*2.4)-2*COS(3*2.4)-COS(4*2.4) -> -13.94259657 | E15: =(16 + 10)*(SIN(2.4)*SIN(2.4)*SIN(2.4)) -> 8.012690906 | F15: =(13 + 10) * COS(2.4)-5*COS(2*2.4)-2*COS(3*2.4)-COS(4*2.4) -> -17.62956515 | G15: =(16 + 15)*(SIN(2.4)*SIN(2.4)*SIN(2.4)) -> 9.553593003 | H15: =(13 + 15) * COS(2.4)-5*COS(2*2.4)-2*COS(3*2.4)-COS(4*2.4) -> -21.31653373 | I15: =(16 + 20)*(SIN(2.4)*SIN(2.4)*SIN(2.4)) -> 11.0944951 | J15: =(13 + 20) * COS(2.4)-5*COS(2*2.4)-2*COS(3*2.4)-COS(4*2.4) -> -25.0035023
A16: =(16 + 0)*(SIN(2.5)*SIN(2.5)*SIN(2.5)) -> 3.429665822 | B16: =(13 + 0) * COS(2.5)-5*COS(2*2.5)-2*COS(3*2.5)-COS(4*2.5) -> -11.68737704 | C16: =(16 + 5)*(SIN(2.5)*SIN(2.5)*SIN(2.5)) -> 4.501436392 | D16: =(13 + 5) * COS(2.5)-5*COS(2*2.5)-2*COS(3*2.5)-COS(4*2.5) -> -15.69309511 | E16: =(16 + 10)*(SIN(2.5)*SIN(2.5)*SIN(2.5)) -> 5.573206961 | F16: =(13 + 10) * COS(2.5)-5*COS(2*2.5)-2*COS(3*2.5)-COS(4*2.5) -> -19.69881319 | G16: =(16 + 15)*(SIN(2.5)*SIN(2.5)*SIN(2.5)) -> 6.64497753 | H16: =(13 + 15) * COS(2.5)-5*COS(2*2.5)-2*COS(3*2.5)-COS(4*2.5) -> -23.70453127 | I16: =(16 + 20)*(SIN(2.5)*SIN(2.5)*SIN(2.5)) -> 7.7167481 | J16: =(13 + 20) * COS(2.5)-5*COS(2*2.5)-2*COS(3*2.5)-COS(4*2.5) -> -27.71024935
A17: =(16 + 0)*(SIN(2.6)*SIN(2.6)*SIN(2.6)) -> 2.19184308 | B17: =(13 + 0) * COS(2.6)-5*COS(2*2.6)-2*COS(3*2.6)-COS(4*2.6) -> -13.02906373 | C17: =(16 + 5)*(SIN(2.6)*SIN(2.6)*SIN(2.6)) -> 2.876794043 | D17: =(13 + 5) * COS(2.6)-5*COS(2*2.6)-2*COS(3*2.6)-COS(4*2.6) -> -17.3135075 | E17: =(16 + 10)*(SIN(2.6)*SIN(2.6)*SIN(2.6)) -> 3.561745006 | F17: =(13 + 10) * COS(2.6)-5*COS(2*2.6)-2*COS(3*2.6)-COS(4*2.6) -> -21.59795127 | G17: =(16 + 15)*(SIN(2.6)*SIN(2.6)*SIN(2.6)) -> 4.246695968 | H17: =(13 + 15) * COS(2.6)-5*COS(2*2.6)-2*COS(3*2.6)-COS(4*2.6) -> -25.88239503 | I17: =(16 + 20)*(SIN(2.6)*SIN(2.6)*SIN(2.6)) -> 4.931646931 | J17: =(13 + 20) * COS(2.6)-5*COS(2*2.6)-2*COS(3*2.6)-COS(4*2.6) -> -30.1668388
A18: =(16 + 0)*(SIN(2.7)*SIN(2.7)*SIN(2.7)) -> 1.248999319 | B18: =(13 + 0) * COS(2.7)-5*COS(2*2.7)-2*COS(3*2.7)-COS(4*2.7) -> -14.24498401 | C18: =(16 + 5)*(SIN(2.7)*SIN(2.7)*SIN(2.7)) -> 1.639311607 | D18: =(13 + 5) * COS(2.7)-5*COS(2*2.7)-2*COS(3*2.7)-COS(4*2.7) -> -18.76534472 | E18: =(16 + 10)*(SIN(2.7)*SIN(2.7)*SIN(2.7)) -> 2.029623894 | F18: =(13 + 10) * COS(2.7)-5*COS(2*2.7)-2*COS(3*2.7)-COS(4*2.7) -> -23.28570543 | G18: =(16 + 15)*(SIN(2.7)*SIN(2.7)*SIN(2.7)) -> 2.419936181 | H18: =(13 + 15) * COS(2.7)-5*COS(2*2.7)-2*COS(3*2.7)-COS(4*2.7) -> -27.80606614 | I18: =(16 + 20)*(SIN(2.7)*SIN(2.7)*SIN(2.7)) -> 2.810248469 | J18: =(13 + 20) * COS(2.7)-5*COS(2*2.7)-2*COS(3*2.7)-COS(4*2.7) -> -32.32642685
A19: =(16 + 0)*(SIN(2.8)*SIN(2.8)*SIN(2.8)) -> 0.6014621695 | B19: =(13 + 0) * COS(2.8)-5*COS(2*2.8)-2*COS(3*2.8)-COS(4*2.8) -> -15.29114738 | C19: =(16 + 5)*(SIN(2.8)*SIN(2.8)*SIN(2.8)) -> 0.7894190975 | D19: =(13 + 5) * COS(2.8)-5*COS(2*2.8)-2*COS(3*2.8)-COS(4*2.8) -> -20.00225908 | E19: =(16 + 10)*(SIN(2.8)*SIN(2.8)*SIN(2.8)) -> 0.9773760255 | F19: =(13 + 10) * COS(2.8)-5*COS(2*2.8)-2*COS(3*2.8)-COS(4*2.8) -> -24.71337078 | G19: =(16 + 15)*(SIN(2.8)*SIN(2.8)*SIN(2.8)) -> 1.165332953 | H19: =(13 + 15) * COS(2.8)-5*COS(2*2.8)-2*COS(3*2.8)-COS(4*2.8) -> -29.42448249 | I19: =(16 + 20)*(SIN(2.8)*SIN(2.8)*SIN(2.8)) -> 1.353289881 | J19: =(13 + 20) * COS(2.8)-5*COS(2*2.8)-2*COS(3*2.8)-COS(4*2.8) -> -34.13559419
A20: =(16 + 0)*(SIN(2.9)*SIN(2.9)*SIN(2.9)) -> 0.2191150302 | B20: =(13 + 0) * COS(2.9)-5*COS(2*2.9)-2*COS(3*2.9)-COS(4*2.9) -> -16.12105007 | C20: =(16 + 5)*(SIN(2.9)*SIN(2.9)*SIN(2.9)) -> 0.2875884772 | D20: =(13 + 5) * COS(2.9)-5*COS(2*2.9)-2*COS(3*2.9)-COS(4*2.9) -> -20.9758409 | E20: =(16 + 10)*(SIN(2.9)*SIN(2.9)*SIN(2.9)) -> 0.3560619241 | F20: =(13 + 10) * COS(2.9)-5*COS(2*2.9)-2*COS(3*2.9)-COS(4*2.9) -> -25.83063172 | G20: =(16 + 15)*(SIN(2.9)*SIN(2.9)*SIN(2.9)) -> 0.4245353711 | H20: =(13 + 15) * COS(2.9)-5*COS(2*2.9)-2*COS(3*2.9)-COS(4*2.9) -> -30.68542255 | I20: =(16 + 20)*(SIN(2.9)*SIN(2.9)*SIN(2.9)) -> 0.493008818 | J20: =(13 + 20) * COS(2.9)-5*COS(2*2.9)-2*COS(3*2.9)-COS(4*2.9) -> -35.54021337
A21: =(16 + 0)*(SIN(3)*SIN(3)*SIN(3)) -> 0.04496615575 | B21: =(13 + 0) * COS(3)-5*COS(2*3)-2*COS(3*3)-COS(4*3) -> -16.69234732 | C21: =(16 + 5)*(SIN(3)*SIN(3)*SIN(3)) -> 0.05901807942 | D21: =(13 + 5) * COS(3)-5*COS(2*3)-2*COS(3*3)-COS(4*3) -> -21.64230981 | E21: =(16 + 10)*(SIN(3)*SIN(3)*SIN(3)) -> 0.0730700031 | F21: =(13 + 10) * COS(3)-5*COS(2*3)-2*COS(3*3)-COS(4*3) -> -26.59227229 | G21: =(16 + 15)*(SIN(3)*SIN(3)*SIN(3)) -> 0.08712192677 | H21: =(13 + 15) * COS(3)-5*COS(2*3)-2*COS(3*3)-COS(4*3) -> -31.54223477 | I21: =(16 + 20)*(SIN(3)*SIN(3)*SIN(3)) -> 0.1011738504 | J21: =(13 + 20) * COS(3)-5*COS(2*3)-2*COS(3*3)-COS(4*3) -> -36.49219726
A22: =(16 + 0)*(SIN(3.1)*SIN(3.1)*SIN(3.1)) -> 0.001150255171 | B22: =(13 + 0) * COS(3.1)-5*COS(2*3.1)-2*COS(3*3.1)-COS(4*3.1) -> -16.97320909 | C22: =(16 + 5)*(SIN(3.1)*SIN(3.1)*SIN(3.1)) -> 0.001509709912 | D22: =(13 + 5) * COS(3.1)-5*COS(2*3.1)-2*COS(3*3.1)-COS(4*3.1) -> -21.96888484 | E22: =(16 + 10)*(SIN(3.1)*SIN(3.1)*SIN(3.1)) -> 0.001869164653 | F22: =(13 + 10) * COS(3.1)-5*COS(2*3.1)-2*COS(3*3.1)-COS(4*3.1) -> -26.96456059 | G22: =(16 + 15)*(SIN(3.1)*SIN(3.1)*SIN(3.1)) -> 0.002228619394 | H22: =(13 + 15) * COS(3.1)-5*COS(2*3.1)-2*COS(3*3.1)-COS(4*3.1) -> -31.96023634 | I22: =(16 + 20)*(SIN(3.1)*SIN(3.1)*SIN(3.1)) -> 0.002588074135 | J22: =(13 + 20) * COS(3.1)-5*COS(2*3.1)-2*COS(3*3.1)-COS(4*3.1) -> -36.9559121
A23: =(16 + 0)*(SIN(3.2)*SIN(3.2)*SIN(3.2)) -> -0.003182596239 | B23: =(13 + 0) * COS(3.2)-5*COS(2*3.2)-2*COS(3*3.2)-COS(4*3.2) -> -16.94721353 | C23: =(16 + 5)*(SIN(3.2)*SIN(3.2)*SIN(3.2)) -> -0.004177157564 | D23: =(13 + 5) * COS(3.2)-5*COS(2*3.2)-2*COS(3*3.2)-COS(4*3.2) -> -21.93868741 | E23: =(16 + 10)*(SIN(3.2)*SIN(3.2)*SIN(3.2)) -> -0.005171718888 | F23: =(13 + 10) * COS(3.2)-5*COS(2*3.2)-2*COS(3*3.2)-COS(4*3.2) -> -26.93016129 | G23: =(16 + 15)*(SIN(3.2)*SIN(3.2)*SIN(3.2)) -> -0.006166280213 | H23: =(13 + 15) * COS(3.2)-5*COS(2*3.2)-2*COS(3*3.2)-COS(4*3.2) -> -31.92163517 | I23: =(16 + 20)*(SIN(3.2)*SIN(3.2)*SIN(3.2)) -> -0.007160841538 | J23: =(13 + 20) * COS(3.2)-5*COS(2*3.2)-2*COS(3*3.2)-COS(4*3.2) -> -36.91310905
A24: =(16 + 0)*(SIN(3.3)*SIN(3.3)*SIN(3.3)) -> -0.06280475462 | B24: =(13 + 0) * COS(3.3)-5*COS(2*3.3)-2*COS(3*3.3)-COS(4*3.3) -> -16.61590162 | C24: =(16 + 5)*(SIN(3.3)*SIN(3.3)*SIN(3.3)) -> -0.08243124044 | D24: =(13 + 5) * COS(3.3)-5*COS(2*3.3)-2*COS(3*3.3)-COS(4*3.3) -> -21.55330047 | E24: =(16 + 10)*(SIN(3.3)*SIN(3.3)*SIN(3.3)) -> -0.1020577263 | F24: =(13 + 10) * COS(3.3)-5*COS(2*3.3)-2*COS(3*3.3)-COS(4*3.3) -> -26.49069932 | G24: =(16 + 15)*(SIN(3.3)*SIN(3.3)*SIN(3.3)) -> -0.1216842121 | H24: =(13 + 15) * COS(3.3)-5*COS(2*3.3)-2*COS(3*3.3)-COS(4*3.3) -> -31.42809817 | I24: =(16 + 20)*(SIN(3.3)*SIN(3.3)*SIN(3.3)) -> -0.1413106979 | J24: =(13 + 20) * COS(3.3)-5*COS(2*3.3)-2*COS(3*3.3)-COS(4*3.3) -> -36.36549702
A25: =(16 + 0)*(SIN(3.4)*SIN(3.4)*SIN(3.4)) -> -0.2669944739 | B25: =(13 + 0) * COS(3.4)-5*COS(2*3.4)-2*COS(3*3.4)-COS(4*3.4) -> -15.99853664 | C25: =(16 + 5)*(SIN(3.4)*SIN(3.4)*SIN(3.4)) -> -0.3504302471 | D25: =(13 + 5) * COS(3.4)-5*COS(2*3.4)-2*COS(3*3.4)-COS(4*3.4) -> -20.83252761 | E25: =(16 + 10)*(SIN(3.4)*SIN(3.4)*SIN(3.4)) -> -0.4338660202 | F25: =(13 + 10) * COS(3.4)-5*COS(2*3.4)-2*COS(3*3.4)-COS(4*3.4) -> -25.66651857 | G25: =(16 + 15)*(SIN(3.4)*SIN(3.4)*SIN(3.4)) -> -0.5173017933 | H25: =(13 + 15) * COS(3.4)-5*COS(2*3.4)-2*COS(3*3.4)-COS(4*3.4) -> -30.50050953 | I25: =(16 + 20)*(SIN(3.4)*SIN(3.4)*SIN(3.4)) -> -0.6007375664 | J25: =(13 + 20) * COS(3.4)-5*COS(2*3.4)-2*COS(3*3.4)-COS(4*3.4) -> -35.3345005
A26: =(16 + 0)*(SIN(3.5)*SIN(3.5)*SIN(3.5)) -> -0.6906156924 | B26: =(13 + 0) * COS(3.5)-5*COS(2*3.5)-2*COS(3*3.5)-COS(4*3.5) -> -15.12911157 | C26: =(16 + 5)*(SIN(3.5)*SIN(3.5)*SIN(3.5)) -> -0.9064330963 | D26: =(13 + 5) * COS(3.5)-5*COS(2*3.5)-2*COS(3*3.5)-COS(4*3.5) -> -19.81139501 | E26: =(16 + 10)*(SIN(3.5)*SIN(3.5)*SIN(3.5)) -> -1.1222505 | F26: =(13 + 10) * COS(3.5)-5*COS(2*3.5)-2*COS(3*3.5)-COS(4*3.5) -> -24.49367844 | G26: =(16 + 15)*(SIN(3.5)*SIN(3.5)*SIN(3.5)) -> -1.338067904 | H26: =(13 + 15) * COS(3.5)-5*COS(2*3.5)-2*COS(3*3.5)-COS(4*3.5) -> -29.17596188 | I26: =(16 + 20)*(SIN(3.5)*SIN(3.5)*SIN(3.5)) -> -1.553885308 | J26: =(13 + 20) * COS(3.5)-5*COS(2*3.5)-2*COS(3*3.5)-COS(4*3.5) -> -33.85824531
A27: =(16 + 0)*(SIN(3.6)*SIN(3.6)*SIN(3.6)) -> -1.386500399 | B27: =(13 + 0) * COS(3.6)-5*COS(2*3.6)-2*COS(3*3.6)-COS(4*3.6) -> -14.05113882 | C27: =(16 + 5)*(SIN(3.6)*SIN(3.6)*SIN(3.6)) -> -1.819781774 | D27: =(13 + 5) * COS(3.6)-5*COS(2*3.6)-2*COS(3*3.6)-COS(4*3.6) -> -18.5349309 | E27: =(16 + 10)*(SIN(3.6)*SIN(3.6)*SIN(3.6)) -> -2.253063149 | F27: =(13 + 10) * COS(3.6)-5*COS(2*3.6)-2*COS(3*3.6)-COS(4*3.6) -> -23.01872298 | G27: =(16 + 15)*(SIN(3.6)*SIN(3.6)*SIN(3.6)) -> -2.686344524 | H27: =(13 + 15) * COS(3.6)-5*COS(2*3.6)-2*COS(3*3.6)-COS(4*3.6) -> -27.50251506 | I27: =(16 + 20)*(SIN(3.6)*SIN(3.6)*SIN(3.6)) -> -3.119625898 | J27: =(13 + 20) * COS(3.6)-5*COS(2*3.6)-2*COS(3*3.6)-COS(4*3.6) -> -31.98630714
A28: =(16 + 0)*(SIN(3.7)*SIN(3.7)*SIN(3.7)) -> -2.379823338 | B28: =(13 + 0) * COS(3.7)-5*COS(2*3.7)-2*COS(3*3.7)-COS(4*3.7) -> -12.81115662 | C28: =(16 + 5)*(SIN(3.7)*SIN(3.7)*SIN(3.7)) -> -3.123518131 | D28: =(13 + 5) * COS(3.7)-5*COS(2*3.7)-2*COS(3*3.7)-COS(4*3.7) -> -17.05165678 | E28: =(16 + 10)*(SIN(3.7)*SIN(3.7)*SIN(3.7)) -> -3.867212924 | F28: =(13 + 10) * COS(3.7)-5*COS(2*3.7)-2*COS(3*3.7)-COS(4*3.7) -> -21.29215694 | G28: =(16 + 15)*(SIN(3.7)*SIN(3.7)*SIN(3.7)) -> -4.610907718 | H28: =(13 + 15) * COS(3.7)-5*COS(2*3.7)-2*COS(3*3.7)-COS(4*3.7) -> -25.5326571 | I28: =(16 + 20)*(SIN(3.7)*SIN(3.7)*SIN(3.7)) -> -5.354602511 | J28: =(13 + 20) * COS(3.7)-5*COS(2*3.7)-2*COS(3*3.7)-COS(4*3.7) -> -29.77315726
A29: =(16 + 0)*(SIN(3.8)*SIN(3.8)*SIN(3.8)) -> -3.664980589 | B29: =(13 + 0) * COS(3.8)-5*COS(2*3.8)-2*COS(3*3.8)-COS(4*3.8) -> -11.45212422 | C29: =(16 + 5)*(SIN(3.8)*SIN(3.8)*SIN(3.8)) -> -4.810287023 | D29: =(13 + 5) * COS(3.8)-5*COS(2*3.8)-2*COS(3*3.8)-COS(4*3.8) -> -15.40696278 | E29: =(16 + 10)*(SIN(3.8)*SIN(3.8)*SIN(3.8)) -> -5.955593457 | F29: =(13 + 10) * COS(3.8)-5*COS(2*3.8)-2*COS(3*3.8)-COS(4*3.8) -> -19.36180134 | G29: =(16 + 15)*(SIN(3.8)*SIN(3.8)*SIN(3.8)) -> -7.100899891 | H29: =(13 + 15) * COS(3.8)-5*COS(2*3.8)-2*COS(3*3.8)-COS(4*3.8) -> -23.3166399 | I29: =(16 + 20)*(SIN(3.8)*SIN(3.8)*SIN(3.8)) -> -8.246206324 | J29: =(13 + 20) * COS(3.8)-5*COS(2*3.8)-2*COS(3*3.8)-COS(4*3.8) -> -27.27147846
A30: =(16 + 0)*(SIN(3.9)*SIN(3.9)*SIN(3.9)) -> -5.205259575 | B30: =(13 + 0) * COS(3.9)-5*COS(2*3.9)-2*COS(3*3.9)-COS(4*3.9) -> -10.00791211 | C30: =(16 + 5)*(SIN(3.9)*SIN(3.9)*SIN(3.9)) -> -6.831903192 | D30: =(13 + 5) * COS(3.9)-5*COS(2*3.9)-2*COS(3*3.9)-COS(4*3.9) -> -13.63757363 | E30: =(16 + 10)*(SIN(3.9)*SIN(3.9)*SIN(3.9)) -> -8.458546809 | F30: =(13 + 10) * COS(3.9)-5*COS(2*3.9)-2*COS(3*3.9)-COS(4*3.9) -> -17.26723515 | G30: =(16 + 15)*(SIN(3.9)*SIN(3.9)*SIN(3.9)) -> -10.08519043 | H30: =(13 + 15) * COS(3.9)-5*COS(2*3.9)-2*COS(3*3.9)-COS(4*3.9) -> -20.89689667 | I30: =(16 + 20)*(SIN(3.9)*SIN(3.9)*SIN(3.9)) -> -11.71183404 | J30: =(13 + 20) * COS(3.9)-5*COS(2*3.9)-2*COS(3*3.9)-COS(4*3.9) -> -24.52655819
A31: =(16 + 0)*(SIN(4)*SIN(4)*SIN(4)) -> -6.935338272 | B31: =(13 + 0) * COS(4)-5*COS(2*4)-2*COS(3*4)-COS(4*4) -> -8.499915339 | C31: =(16 + 5)*(SIN(4)*SIN(4)*SIN(4)) -> -9.102631482 | D31: =(13 + 5) * COS(4)-5*COS(2*4)-2*COS(3*4)-COS(4*4) -> -11.76813344 | E31: =(16 + 10)*(SIN(4)*SIN(4)*SIN(4)) -> -11.26992469 | F31: =(13 + 10) * COS(4)-5*COS(2*4)-2*COS(3*4)-COS(4*4) -> -15.03635155 | G31: =(16 + 15)*(SIN(4)*SIN(4)*SIN(4)) -> -13.4372179 | H31: =(13 + 15) * COS(4)-5*COS(2*4)-2*COS(3*4)-COS(4*4) -> -18.30456965 | I31: =(16 + 20)*(SIN(4)*SIN(4)*SIN(4)) -> -15.60451111 | J31: =(13 + 20) * COS(4)-5*COS(2*4)-2*COS(3*4)-COS(4*4) -> -21.57278776
A32: =(16 + 0)*(SIN(4.1)*SIN(4.1)*SIN(4.1)) -> -8.766398167 | B32: =(13 + 0) * COS(4.1)-5*COS(2*4.1)-2*COS(3*4.1)-COS(4*4.1) -> -6.936454275 | C32: =(16 + 5)*(SIN(4.1)*SIN(4.1)*SIN(4.1)) -> -11.50589759 | D32: =(13 + 5) * COS(4.1)-5*COS(2*4.1)-2*COS(3*4.1)-COS(4*4.1) -> -9.810574008 | E32: =(16 + 10)*(SIN(4.1)*SIN(4.1)*SIN(4.1)) -> -14.24539702 | F32: =(13 + 10) * COS(4.1)-5*COS(2*4.1)-2*COS(3*4.1)-COS(4*4.1) -> -12.68469374 | G32: =(16 + 15)*(SIN(4.1)*SIN(4.1)*SIN(4.1)) -> -16.98489645 | H32: =(13 + 15) * COS(4.1)-5*COS(2*4.1)-2*COS(3*4.1)-COS(4*4.1) -> -15.55881347 | I32: =(16 + 20)*(SIN(4.1)*SIN(4.1)*SIN(4.1)) -> -19.72439588 | J32: =(13 + 20) * COS(4.1)-5*COS(2*4.1)-2*COS(3*4.1)-COS(4*4.1) -> -18.43293321
A33: =(16 + 0)*(SIN(4.2)*SIN(4.2)*SIN(4.2)) -> -10.59340146 | B33: =(13 + 0) * COS(4.2)-5*COS(2*4.2)-2*COS(3*4.2)-COS(4*4.2) -> -5.31513799 | C33: =(16 + 5)*(SIN(4.2)*SIN(4.2)*SIN(4.2)) -> -13.90383941 | D33: =(13 + 5) * COS(4.2)-5*COS(2*4.2)-2*COS(3*4.2)-COS(4*4.2) -> -7.766442097 | E33: =(16 + 10)*(SIN(4.2)*SIN(4.2)*SIN(4.2)) -> -17.21427737 | F33: =(13 + 10) * COS(4.2)-5*COS(2*4.2)-2*COS(3*4.2)-COS(4*4.2) -> -10.2177462 | G33: =(16 + 15)*(SIN(4.2)*SIN(4.2)*SIN(4.2)) -> -20.52471532 | H33: =(13 + 15) * COS(4.2)-5*COS(2*4.2)-2*COS(3*4.2)-COS(4*4.2) -> -12.66905031 | I33: =(16 + 20)*(SIN(4.2)*SIN(4.2)*SIN(4.2)) -> -23.83515328 | J33: =(13 + 20) * COS(4.2)-5*COS(2*4.2)-2*COS(3*4.2)-COS(4*4.2) -> -15.12035442
A34: =(16 + 0)*(SIN(4.3)*SIN(4.3)*SIN(4.3)) -> -12.303889 | B34: =(13 + 0) * COS(4.3)-5*COS(2*4.3)-2*COS(3*4.3)-COS(4*4.3) -> -3.627830882 | C34: =(16 + 5)*(SIN(4.3)*SIN(4.3)*SIN(4.3)) -> -16.14885431 | D34: =(13 + 5) * COS(4.3)-5*COS(2*4.3)-2*COS(3*4.3)-COS(4*4.3) -> -5.631826742 | E34: =(16 + 10)*(SIN(4.3)*SIN(4.3)*SIN(4.3)) -> -19.99381962 | F34: =(13 + 10) * COS(4.3)-5*COS(2*4.3)-2*COS(3*4.3)-COS(4*4.3) -> -7.635822603 | G34: =(16 + 15)*(SIN(4.3)*SIN(4.3)*SIN(4.3)) -> -23.83878493 | H34: =(13 + 15) * COS(4.3)-5*COS(2*4.3)-2*COS(3*4.3)-COS(4*4.3) -> -9.639818463 | I34: =(16 + 20)*(SIN(4.3)*SIN(4.3)*SIN(4.3)) -> -27.68375024 | J34: =(13 + 20) * COS(4.3)-5*COS(2*4.3)-2*COS(3*4.3)-COS(4*4.3) -> -11.64381432
A35: =(16 + 0)*(SIN(4.4)*SIN(4.4)*SIN(4.4)) -> -13.78751895 | B35: =(13 + 0) * COS(4.4)-5*COS(2*4.4)-2*COS(3*4.4)-COS(4*4.4) -> -1.86737391 | C35: =(16 + 5)*(SIN(4.4)*SIN(4.4)*SIN(4.4)) -> -18.09611862 | D35: =(13 + 5) * COS(4.4)-5*COS(2*4.4)-2*COS(3*4.4)-COS(4*4.4) -> -3.40403826 | E35: =(16 + 10)*(SIN(4.4)*SIN(4.4)*SIN(4.4)) -> -22.40471829 | F35: =(13 + 10) * COS(4.4)-5*COS(2*4.4)-2*COS(3*4.4)-COS(4*4.4) -> -4.940702609 | G35: =(16 + 15)*(SIN(4.4)*SIN(4.4)*SIN(4.4)) -> -26.71331796 | H35: =(13 + 15) * COS(4.4)-5*COS(2*4.4)-2*COS(3*4.4)-COS(4*4.4) -> -6.477366959 | I35: =(16 + 20)*(SIN(4.4)*SIN(4.4)*SIN(4.4)) -> -31.02191763 | J35: =(13 + 20) * COS(4.4)-5*COS(2*4.4)-2*COS(3*4.4)-COS(4*4.4) -> -8.014031309
A36: =(16 + 0)*(SIN(4.5)*SIN(4.5)*SIN(4.5)) -> -14.94549912 | B36: =(13 + 0) * COS(4.5)-5*COS(2*4.5)-2*COS(3*4.5)-COS(4*4.5) -> -0.03485211804 | C36: =(16 + 5)*(SIN(4.5)*SIN(4.5)*SIN(4.5)) -> -19.61596759 | D36: =(13 + 5) * COS(4.5)-5*COS(2*4.5)-2*COS(3*4.5)-COS(4*4.5) -> -1.088831115 | E36: =(16 + 10)*(SIN(4.5)*SIN(4.5)*SIN(4.5)) -> -24.28643607 | F36: =(13 + 10) * COS(4.5)-5*COS(2*4.5)-2*COS(3*4.5)-COS(4*4.5) -> -2.142810112 | G36: =(16 + 15)*(SIN(4.5)*SIN(4.5)*SIN(4.5)) -> -28.95690454 | H36: =(13 + 15) * COS(4.5)-5*COS(2*4.5)-2*COS(3*4.5)-COS(4*4.5) -> -3.19678911 | I36: =(16 + 20)*(SIN(4.5)*SIN(4.5)*SIN(4.5)) -> -33.62737302 | J36: =(13 + 20) * COS(4.5)-5*COS(2*4.5)-2*COS(3*4.5)-COS(4*4.5) -> -4.250768107
A37: =(16 + 0)*(SIN(4.6)*SIN(4.6)*SIN(4.6)) -> -15.69907472 | B37: =(13 + 0) * COS(4.6)-5*COS(2*4.6)-2*COS(3*4.6)-COS(4*4.6) -> 1.853965329 | C37: =(16 + 5)*(SIN(4.6)*SIN(4.6)*SIN(4.6)) -> -20.60503557 | D37: =(13 + 5) * COS(4.6)-5*COS(2*4.6)-2*COS(3*4.6)-COS(4*4.6) -> 1.293202694 | E37: =(16 + 10)*(SIN(4.6)*SIN(4.6)*SIN(4.6)) -> -25.51099642 | F37: =(13 + 10) * COS(4.6)-5*COS(2*4.6)-2*COS(3*4.6)-COS(4*4.6) -> 0.7324400592 | G37: =(16 + 15)*(SIN(4.6)*SIN(4.6)*SIN(4.6)) -> -30.41695727 | H37: =(13 + 15) * COS(4.6)-5*COS(2*4.6)-2*COS(3*4.6)-COS(4*4.6) -> 0.1716774246 | I37: =(16 + 20)*(SIN(4.6)*SIN(4.6)*SIN(4.6)) -> -35.32291812 | J37: =(13 + 20) * COS(4.6)-5*COS(2*4.6)-2*COS(3*4.6)-COS(4*4.6) -> -0.3890852101
A38: =(16 + 0)*(SIN(4.7)*SIN(4.7)*SIN(4.7)) -> -15.99631665 | B38: =(13 + 0) * COS(4.7)-5*COS(2*4.7)-2*COS(3*4.7)-COS(4*4.7) -> 3.764323459 | C38: =(16 + 5)*(SIN(4.7)*SIN(4.7)*SIN(4.7)) -> -20.9951656 | D38: =(13 + 5) * COS(4.7)-5*COS(2*4.7)-2*COS(3*4.7)-COS(4*4.7) -> 3.702380142 | E38: =(16 + 10)*(SIN(4.7)*SIN(4.7)*SIN(4.7)) -> -25.99401455 | F38: =(13 + 10) * COS(4.7)-5*COS(2*4.7)-2*COS(3*4.7)-COS(4*4.7) -> 3.640436824 | G38: =(16 + 15)*(SIN(4.7)*SIN(4.7)*SIN(4.7)) -> -30.9928635 | H38: =(13 + 15) * COS(4.7)-5*COS(2*4.7)-2*COS(3*4.7)-COS(4*4.7) -> 3.578493507 | I38: =(16 + 20)*(SIN(4.7)*SIN(4.7)*SIN(4.7)) -> -35.99171245 | J38: =(13 + 20) * COS(4.7)-5*COS(2*4.7)-2*COS(3*4.7)-COS(4*4.7) -> 3.51655019
A39: =(16 + 0)*(SIN(4.8)*SIN(4.8)*SIN(4.8)) -> -15.81660641 | B39: =(13 + 0) * COS(4.8)-5*COS(2*4.8)-2*COS(3*4.8)-COS(4*4.8) -> 5.641340429 | C39: =(16 + 5)*(SIN(4.8)*SIN(4.8)*SIN(4.8)) -> -20.75929592 | D39: =(13 + 5) * COS(4.8)-5*COS(2*4.8)-2*COS(3*4.8)-COS(4*4.8) -> 6.078835347 | E39: =(16 + 10)*(SIN(4.8)*SIN(4.8)*SIN(4.8)) -> -25.70198542 | F39: =(13 + 10) * COS(4.8)-5*COS(2*4.8)-2*COS(3*4.8)-COS(4*4.8) -> 6.516330264 | G39: =(16 + 15)*(SIN(4.8)*SIN(4.8)*SIN(4.8)) -> -30.64467492 | H39: =(13 + 15) * COS(4.8)-5*COS(2*4.8)-2*COS(3*4.8)-COS(4*4.8) -> 6.953825181 | I39: =(16 + 20)*(SIN(4.8)*SIN(4.8)*SIN(4.8)) -> -35.58736443 | J39: =(13 + 20) * COS(4.8)-5*COS(2*4.8)-2*COS(3*4.8)-COS(4*4.8) -> 7.391320098
A40: =(16 + 0)*(SIN(4.9)*SIN(4.9)*SIN(4.9)) -> -15.17241868 | B40: =(13 + 0) * COS(4.9)-5*COS(2*4.9)-2*COS(3*4.9)-COS(4*4.9) -> 7.412574841 | C40: =(16 + 5)*(SIN(4.9)*SIN(4.9)*SIN(4.9)) -> -19.91379951 | D40: =(13 + 5) * COS(4.9)-5*COS(2*4.9)-2*COS(3*4.9)-COS(4*4.9) -> 8.345136688 | E40: =(16 + 10)*(SIN(4.9)*SIN(4.9)*SIN(4.9)) -> -24.65518035 | F40: =(13 + 10) * COS(4.9)-5*COS(2*4.9)-2*COS(3*4.9)-COS(4*4.9) -> 9.277698535 | G40: =(16 + 15)*(SIN(4.9)*SIN(4.9)*SIN(4.9)) -> -29.39656118 | H40: =(13 + 15) * COS(4.9)-5*COS(2*4.9)-2*COS(3*4.9)-COS(4*4.9) -> 10.21026038 | I40: =(16 + 20)*(SIN(4.9)*SIN(4.9)*SIN(4.9)) -> -34.13794202 | J40: =(13 + 20) * COS(4.9)-5*COS(2*4.9)-2*COS(3*4.9)-COS(4*4.9) -> 11.14282223
A41: =(16 + 0)*(SIN(5)*SIN(5)*SIN(5)) -> -14.10824266 | B41: =(13 + 0) * COS(5)-5*COS(2*5)-2*COS(3*5)-COS(4*5) -> 8.99425982 | C41: =(16 + 5)*(SIN(5)*SIN(5)*SIN(5)) -> -18.51706849 | D41: =(13 + 5) * COS(5)-5*COS(2*5)-2*COS(3*5)-COS(4*5) -> 10.41257075 | E41: =(16 + 10)*(SIN(5)*SIN(5)*SIN(5)) -> -22.92589432 | F41: =(13 + 10) * COS(5)-5*COS(2*5)-2*COS(3*5)-COS(4*5) -> 11.83088167 | G41: =(16 + 15)*(SIN(5)*SIN(5)*SIN(5)) -> -27.33472015 | H41: =(13 + 15) * COS(5)-5*COS(2*5)-2*COS(3*5)-COS(4*5) -> 13.2491926 | I41: =(16 + 20)*(SIN(5)*SIN(5)*SIN(5)) -> -31.74354598 | J41: =(13 + 20) * COS(5)-5*COS(2*5)-2*COS(3*5)-COS(4*5) -> 14.66750353
A42: =(16 + 0)*(SIN(5.1)*SIN(5.1)*SIN(5.1)) -> -12.69673848 | B42: =(13 + 0) * COS(5.1)-5*COS(2*5.1)-2*COS(3*5.1)-COS(4*5.1) -> 10.30054963 | C42: =(16 + 5)*(SIN(5.1)*SIN(5.1)*SIN(5.1)) -> -16.66446926 | D42: =(13 + 5) * COS(5.1)-5*COS(2*5.1)-2*COS(3*5.1)-COS(4*5.1) -> 12.19043835 | E42: =(16 + 10)*(SIN(5.1)*SIN(5.1)*SIN(5.1)) -> -20.63220003 | F42: =(13 + 10) * COS(5.1)-5*COS(2*5.1)-2*COS(3*5.1)-COS(4*5.1) -> 14.08032706 | G42: =(16 + 15)*(SIN(5.1)*SIN(5.1)*SIN(5.1)) -> -24.59993081 | H42: =(13 + 15) * COS(5.1)-5*COS(2*5.1)-2*COS(3*5.1)-COS(4*5.1) -> 15.97021577 | I42: =(16 + 20)*(SIN(5.1)*SIN(5.1)*SIN(5.1)) -> -28.56766158 | J42: =(13 + 20) * COS(5.1)-5*COS(2*5.1)-2*COS(3*5.1)-COS(4*5.1) -> 17.86010449
A43: =(16 + 0)*(SIN(5.2)*SIN(5.2)*SIN(5.2)) -> -11.03247048 | B43: =(13 + 0) * COS(5.2)-5*COS(2*5.2)-2*COS(3*5.2)-COS(4*5.2) -> 11.25458659 | C43: =(16 + 5)*(SIN(5.2)*SIN(5.2)*SIN(5.2)) -> -14.4801175 | D43: =(13 + 5) * COS(5.2)-5*COS(2*5.2)-2*COS(3*5.2)-COS(4*5.2) -> 13.59716995 | E43: =(16 + 10)*(SIN(5.2)*SIN(5.2)*SIN(5.2)) -> -17.92776453 | F43: =(13 + 10) * COS(5.2)-5*COS(2*5.2)-2*COS(3*5.2)-COS(4*5.2) -> 15.9397533 | G43: =(16 + 15)*(SIN(5.2)*SIN(5.2)*SIN(5.2)) -> -21.37541155 | H43: =(13 + 15) * COS(5.2)-5*COS(2*5.2)-2*COS(3*5.2)-COS(4*5.2) -> 18.28233666 | I43: =(16 + 20)*(SIN(5.2)*SIN(5.2)*SIN(5.2)) -> -24.82305858 | J43: =(13 + 20) * COS(5.2)-5*COS(2*5.2)-2*COS(3*5.2)-COS(4*5.2) -> 20.62492002
A44: =(16 + 0)*(SIN(5.3)*SIN(5.3)*SIN(5.3)) -> -9.223774981 | B44: =(13 + 0) * COS(5.3)-5*COS(2*5.3)-2*COS(3*5.3)-COS(4*5.3) -> 11.79982137 | C44: =(16 + 5)*(SIN(5.3)*SIN(5.3)*SIN(5.3)) -> -12.10620466 | D44: =(13 + 5) * COS(5.3)-5*COS(2*5.3)-2*COS(3*5.3)-COS(4*5.3) -> 14.57169305 | E44: =(16 + 10)*(SIN(5.3)*SIN(5.3)*SIN(5.3)) -> -14.98863434 | F44: =(13 + 10) * COS(5.3)-5*COS(2*5.3)-2*COS(3*5.3)-COS(4*5.3) -> 17.34356473 | G44: =(16 + 15)*(SIN(5.3)*SIN(5.3)*SIN(5.3)) -> -17.87106403 | H44: =(13 + 15) * COS(5.3)-5*COS(2*5.3)-2*COS(3*5.3)-COS(4*5.3) -> 20.11543641 | I44: =(16 + 20)*(SIN(5.3)*SIN(5.3)*SIN(5.3)) -> -20.75349371 | J44: =(13 + 20) * COS(5.3)-5*COS(2*5.3)-2*COS(3*5.3)-COS(4*5.3) -> 22.88730809
A45: =(16 + 0)*(SIN(5.4)*SIN(5.4)*SIN(5.4)) -> -7.383485905 | B45: =(13 + 0) * COS(5.4)-5*COS(2*5.4)-2*COS(3*5.4)-COS(4*5.4) -> 11.90987368 | C45: =(16 + 5)*(SIN(5.4)*SIN(5.4)*SIN(5.4)) -> -9.69082525 | D45: =(13 + 5) * COS(5.4)-5*COS(2*5.4)-2*COS(3*5.4)-COS(4*5.4) -> 15.08333805 | E45: =(16 + 10)*(SIN(5.4)*SIN(5.4)*SIN(5.4)) -> -11.9981646 | F45: =(13 + 10) * COS(5.4)-5*COS(2*5.4)-2*COS(3*5.4)-COS(4*5.4) -> 18.25680243 | G45: =(16 + 15)*(SIN(5.4)*SIN(5.4)*SIN(5.4)) -> -14.30550394 | H45: =(13 + 15) * COS(5.4)-5*COS(2*5.4)-2*COS(3*5.4)-COS(4*5.4) -> 21.43026681 | I45: =(16 + 20)*(SIN(5.4)*SIN(5.4)*SIN(5.4)) -> -16.61284329 | J45: =(13 + 20) * COS(5.4)-5*COS(2*5.4)-2*COS(3*5.4)-COS(4*5.4) -> 24.60373119
A46: =(16 + 0)*(SIN(5.5)*SIN(5.5)*SIN(5.5)) -> -5.619342537 | B46: =(13 + 0) * COS(5.5)-5*COS(2*5.5)-2*COS(3*5.5)-COS(4*5.5) -> 11.59533352 | C46: =(16 + 5)*(SIN(5.5)*SIN(5.5)*SIN(5.5)) -> -7.37538708 | D46: =(13 + 5) * COS(5.5)-5*COS(2*5.5)-2*COS(3*5.5)-COS(4*5.5) -> 15.13868239 | E46: =(16 + 10)*(SIN(5.5)*SIN(5.5)*SIN(5.5)) -> -9.131431623 | F46: =(13 + 10) * COS(5.5)-5*COS(2*5.5)-2*COS(3*5.5)-COS(4*5.5) -> 18.68203126 | G46: =(16 + 15)*(SIN(5.5)*SIN(5.5)*SIN(5.5)) -> -10.88747617 | H46: =(13 + 15) * COS(5.5)-5*COS(2*5.5)-2*COS(3*5.5)-COS(4*5.5) -> 22.22538013 | I46: =(16 + 20)*(SIN(5.5)*SIN(5.5)*SIN(5.5)) -> -12.64352071 | J46: =(13 + 20) * COS(5.5)-5*COS(2*5.5)-2*COS(3*5.5)-COS(4*5.5) -> 25.768729
A47: =(16 + 0)*(SIN(5.6)*SIN(5.6)*SIN(5.6)) -> -4.02493152 | B47: =(13 + 0) * COS(5.6)-5*COS(2*5.6)-2*COS(3*5.6)-COS(4*5.6) -> 10.90626733 | C47: =(16 + 5)*(SIN(5.6)*SIN(5.6)*SIN(5.6)) -> -5.28272262 | D47: =(13 + 5) * COS(5.6)-5*COS(2*5.6)-2*COS(3*5.6)-COS(4*5.6) -> 14.78409672 | E47: =(16 + 10)*(SIN(5.6)*SIN(5.6)*SIN(5.6)) -> -6.54051372 | F47: =(13 + 10) * COS(5.6)-5*COS(2*5.6)-2*COS(3*5.6)-COS(4*5.6) -> 18.66192611 | G47: =(16 + 15)*(SIN(5.6)*SIN(5.6)*SIN(5.6)) -> -7.79830482 | H47: =(13 + 15) * COS(5.6)-5*COS(2*5.6)-2*COS(3*5.6)-COS(4*5.6) -> 22.5397555 | I47: =(16 + 20)*(SIN(5.6)*SIN(5.6)*SIN(5.6)) -> -9.05609592 | J47: =(13 + 20) * COS(5.6)-5*COS(2*5.6)-2*COS(3*5.6)-COS(4*5.6) -> 26.4175849
A48: =(16 + 0)*(SIN(5.7)*SIN(5.7)*SIN(5.7)) -> -2.671966491 | B48: =(13 + 0) * COS(5.7)-5*COS(2*5.7)-2*COS(3*5.7)-COS(4*5.7) -> 9.92975989 | C48: =(16 + 5)*(SIN(5.7)*SIN(5.7)*SIN(5.7)) -> -3.506956019 | D48: =(13 + 5) * COS(5.7)-5*COS(2*5.7)-2*COS(3*5.7)-COS(4*5.7) -> 14.10332381 | E48: =(16 + 10)*(SIN(5.7)*SIN(5.7)*SIN(5.7)) -> -4.341945548 | F48: =(13 + 10) * COS(5.7)-5*COS(2*5.7)-2*COS(3*5.7)-COS(4*5.7) -> 18.27688774 | G48: =(16 + 15)*(SIN(5.7)*SIN(5.7)*SIN(5.7)) -> -5.176935076 | H48: =(13 + 15) * COS(5.7)-5*COS(2*5.7)-2*COS(3*5.7)-COS(4*5.7) -> 22.45045166 | I48: =(16 + 20)*(SIN(5.7)*SIN(5.7)*SIN(5.7)) -> -6.011924604 | J48: =(13 + 20) * COS(5.7)-5*COS(2*5.7)-2*COS(3*5.7)-COS(4*5.7) -> 26.62401559
A49: =(16 + 0)*(SIN(5.8)*SIN(5.8)*SIN(5.8)) -> -1.604588631 | B49: =(13 + 0) * COS(5.8)-5*COS(2*5.8)-2*COS(3*5.8)-COS(4*5.8) -> 8.782512165 | C49: =(16 + 5)*(SIN(5.8)*SIN(5.8)*SIN(5.8)) -> -2.106022578 | D49: =(13 + 5) * COS(5.8)-5*COS(2*5.8)-2*COS(3*5.8)-COS(4*5.8) -> 13.21010975 | E49: =(16 + 10)*(SIN(5.8)*SIN(5.8)*SIN(5.8)) -> -2.607456526 | F49: =(13 + 10) * COS(5.8)-5*COS(2*5.8)-2*COS(3*5.8)-COS(4*5.8) -> 17.63770733 | G49: =(16 + 15)*(SIN(5.8)*SIN(5.8)*SIN(5.8)) -> -3.108890473 | H49: =(13 + 15) * COS(5.8)-5*COS(2*5.8)-2*COS(3*5.8)-COS(4*5.8) -> 22.06530492 | I49: =(16 + 20)*(SIN(5.8)*SIN(5.8)*SIN(5.8)) -> -3.61032442 | J49: =(13 + 20) * COS(5.8)-5*COS(2*5.8)-2*COS(3*5.8)-COS(4*5.8) -> 26.4929025
A50: =(16 + 0)*(SIN(5.9)*SIN(5.9)*SIN(5.9)) -> -0.8361901788 | B50: =(13 + 0) * COS(5.9)-5*COS(2*5.9)-2*COS(3*5.9)-COS(4*5.9) -> 7.599225812 | C50: =(16 + 5)*(SIN(5.9)*SIN(5.9)*SIN(5.9)) -> -1.09749961 | D50: =(13 + 5) * COS(5.9)-5*COS(2*5.9)-2*COS(3*5.9)-COS(4*5.9) -> 12.23661797 | E50: =(16 + 10)*(SIN(5.9)*SIN(5.9)*SIN(5.9)) -> -1.358809041 | F50: =(13 + 10) * COS(5.9)-5*COS(2*5.9)-2*COS(3*5.9)-COS(4*5.9) -> 16.87401012 | G50: =(16 + 15)*(SIN(5.9)*SIN(5.9)*SIN(5.9)) -> -1.620118471 | H50: =(13 + 15) * COS(5.9)-5*COS(2*5.9)-2*COS(3*5.9)-COS(4*5.9) -> 21.51140227 | I50: =(16 + 20)*(SIN(5.9)*SIN(5.9)*SIN(5.9)) -> -1.881427902 | J50: =(13 + 20) * COS(5.9)-5*COS(2*5.9)-2*COS(3*5.9)-COS(4*5.9) -> 26.14879443
A51: =(16 + 0)*(SIN(6)*SIN(6)*SIN(6)) -> -0.3490369913 | B51: =(13 + 0) * COS(6)-5*COS(2*6)-2*COS(3*6)-COS(4*6) -> 6.518131509 | C51: =(16 + 5)*(SIN(6)*SIN(6)*SIN(6)) -> -0.4581110511 | D51: =(13 + 5) * COS(6)-5*COS(2*6)-2*COS(3*6)-COS(4*6) -> 11.31898294 | E51: =(16 + 10)*(SIN(6)*SIN(6)*SIN(6)) -> -0.5671851109 | F51: =(13 + 10) * COS(6)-5*COS(2*6)-2*COS(3*6)-COS(4*6) -> 16.11983438 | G51: =(16 + 15)*(SIN(6)*SIN(6)*SIN(6)) -> -0.6762591706 | H51: =(13 + 15) * COS(6)-5*COS(2*6)-2*COS(3*6)-COS(4*6) -> 20.92068581 | I51: =(16 + 20)*(SIN(6)*SIN(6)*SIN(6)) -> -0.7853332304 | J51: =(13 + 20) * COS(6)-5*COS(2*6)-2*COS(3*6)-COS(4*6) -> 25.72153724
A52: =(16 + 0)*(SIN(6.1)*SIN(6.1)*SIN(6.1)) -> -0.09671569276 | B52: =(13 + 0) * COS(6.1)-5*COS(2*6.1)-2*COS(3*6.1)-COS(4*6.1) -> 5.665464812 | C52: =(16 + 5)*(SIN(6.1)*SIN(6.1)*SIN(6.1)) -> -0.1269393467 | D52: =(13 + 5) * COS(6.1)-5*COS(2*6.1)-2*COS(3*6.1)-COS(4*6.1) -> 10.581807 | E52: =(16 + 10)*(SIN(6.1)*SIN(6.1)*SIN(6.1)) -> -0.1571630007 | F52: =(13 + 10) * COS(6.1)-5*COS(2*6.1)-2*COS(3*6.1)-COS(4*6.1) -> 15.4981492 | G52: =(16 + 15)*(SIN(6.1)*SIN(6.1)*SIN(6.1)) -> -0.1873866547 | H52: =(13 + 15) * COS(6.1)-5*COS(2*6.1)-2*COS(3*6.1)-COS(4*6.1) -> 20.41449139 | I52: =(16 + 20)*(SIN(6.1)*SIN(6.1)*SIN(6.1)) -> -0.2176103087 | J52: =(13 + 20) * COS(6.1)-5*COS(2*6.1)-2*COS(3*6.1)-COS(4*6.1) -> 25.33083358
A53: =(16 + 0)*(SIN(6.19999999999999)*SIN(6.19999999999999)*SIN(6.19999999999999)) -> -0.009178186863 | B53: =(13 + 0) * COS(6.19999999999999)-5*COS(2*6.19999999999999)-2*COS(3*6.19999999999999)-COS(4*6.19999999999999) -> 5.14089085 | C53: =(16 + 5)*(SIN(6.19999999999999)*SIN(6.19999999999999)*SIN(6.19999999999999)) -> -0.01204637026 | D53: =(13 + 5) * COS(6.19999999999999)-5*COS(2*6.19999999999999)-2*COS(3*6.19999999999999)-COS(4*6.19999999999999) -> 10.12360133 | E53: =(16 + 10)*(SIN(6.19999999999999)*SIN(6.19999999999999)*SIN(6.19999999999999)) -> -0.01491455365 | F53: =(13 + 10) * COS(6.19999999999999)-5*COS(2*6.19999999999999)-2*COS(3*6.19999999999999)-COS(4*6.19999999999999) -> 15.10631182 | G53: =(16 + 15)*(SIN(6.19999999999999)*SIN(6.19999999999999)*SIN(6.19999999999999)) -> -0.01778273705 | H53: =(13 + 15) * COS(6.19999999999999)-5*COS(2*6.19999999999999)-2*COS(3*6.19999999999999)-COS(4*6.19999999999999) -> 20.08902231 | I53: =(16 + 20)*(SIN(6.19999999999999)*SIN(6.19999999999999)*SIN(6.19999999999999)) -> -0.02065092044 | J53: =(13 + 20) * COS(6.19999999999999)-5*COS(2*6.19999999999999)-2*COS(3*6.19999999999999)-COS(4*6.19999999999999) -> 25.07173279
A54: =(16 + 0)*(SIN(6.29999999999999)*SIN(6.29999999999999)*SIN(6.29999999999999)) -> 7.605458495e-05 | B54: =(13 + 0) * COS(6.29999999999999)-5*COS(2*6.29999999999999)-2*COS(3*6.29999999999999)-COS(4*6.29999999999999) -> 5.00579443 | C54: =(16 + 5)*(SIN(6.29999999999999)*SIN(6.29999999999999)*SIN(6.29999999999999)) -> 9.982164274e-05 | D54: =(13 + 5) * COS(6.29999999999999)-5*COS(2*6.29999999999999)-2*COS(3*6.29999999999999)-COS(4*6.29999999999999) -> 10.00508761 | E54: =(16 + 10)*(SIN(6.29999999999999)*SIN(6.29999999999999)*SIN(6.29999999999999)) -> 0.0001235887005 | F54: =(13 + 10) * COS(6.29999999999999)-5*COS(2*6.29999999999999)-2*COS(3*6.29999999999999)-COS(4*6.29999999999999) -> 15.00438079 | G54: =(16 + 15)*(SIN(6.29999999999999)*SIN(6.29999999999999)*SIN(6.29999999999999)) -> 0.0001473557583 | H54: =(13 + 15) * COS(6.29999999999999)-5*COS(2*6.29999999999999)-2*COS(3*6.29999999999999)-COS(4*6.29999999999999) -> 20.00367398 | I54: =(16 + 20)*(SIN(6.29999999999999)*SIN(6.29999999999999)*SIN(6.29999999999999)) -> 0.0001711228161 | J54: =(13 + 20) * COS(6.29999999999999)-5*COS(2*6.29999999999999)-2*COS(3*6.29999999999999)-COS(4*6.29999999999999) -> 25.00296716
A55: =(16 + 0)*(SIN(6.39999999999999)*SIN(6.39999999999999)*SIN(6.39999999999999)) -> 0.02533074293 | B55: =(13 + 0) * COS(6.39999999999999)-5*COS(2*6.39999999999999)-2*COS(3*6.39999999999999)-COS(4*6.39999999999999) -> 5.27599402 | C55: =(16 + 5)*(SIN(6.39999999999999)*SIN(6.39999999999999)*SIN(6.39999999999999)) -> 0.03324660009 | D55: =(13 + 5) * COS(6.39999999999999)-5*COS(2*6.39999999999999)-2*COS(3*6.39999999999999)-COS(4*6.39999999999999) -> 10.24191861 | E55: =(16 + 10)*(SIN(6.39999999999999)*SIN(6.39999999999999)*SIN(6.39999999999999)) -> 0.04116245726 | F55: =(13 + 10) * COS(6.39999999999999)-5*COS(2*6.39999999999999)-2*COS(3*6.39999999999999)-COS(4*6.39999999999999) -> 15.20784321 | G55: =(16 + 15)*(SIN(6.39999999999999)*SIN(6.39999999999999)*SIN(6.39999999999999)) -> 0.04907831442 | H55: =(13 + 15) * COS(6.39999999999999)-5*COS(2*6.39999999999999)-2*COS(3*6.39999999999999)-COS(4*6.39999999999999) -> 20.1737678 | I55: =(16 + 20)*(SIN(6.39999999999999)*SIN(6.39999999999999)*SIN(6.39999999999999)) -> 0.05699417158 | J55: =(13 + 20) * COS(6.39999999999999)-5*COS(2*6.39999999999999)-2*COS(3*6.39999999999999)-COS(4*6.39999999999999) -> 25.1396924
A56: =(16 + 0)*(SIN(6.49999999999999)*SIN(6.49999999999999)*SIN(6.49999999999999)) -> 0.1592803782 | B56: =(13 + 0) * COS(6.49999999999999)-5*COS(2*6.49999999999999)-2*COS(3*6.49999999999999)-COS(4*6.49999999999999) -> 5.919855965 | C56: =(16 + 5)*(SIN(6.49999999999999)*SIN(6.49999999999999)*SIN(6.49999999999999)) -> 0.2090554964 | D56: =(13 + 5) * COS(6.49999999999999)-5*COS(2*6.49999999999999)-2*COS(3*6.49999999999999)-COS(4*6.49999999999999) -> 10.80279409 | E56: =(16 + 10)*(SIN(6.49999999999999)*SIN(6.49999999999999)*SIN(6.49999999999999)) -> 0.2588306145 | F56: =(13 + 10) * COS(6.49999999999999)-5*COS(2*6.49999999999999)-2*COS(3*6.49999999999999)-COS(4*6.49999999999999) -> 15.68573222 | G56: =(16 + 15)*(SIN(6.49999999999999)*SIN(6.49999999999999)*SIN(6.49999999999999)) -> 0.3086057327 | H56: =(13 + 15) * COS(6.49999999999999)-5*COS(2*6.49999999999999)-2*COS(3*6.49999999999999)-COS(4*6.49999999999999) -> 20.56867035 | I56: =(16 + 20)*(SIN(6.49999999999999)*SIN(6.49999999999999)*SIN(6.49999999999999)) -> 0.3583808509 | J56: =(13 + 20) * COS(6.49999999999999)-5*COS(2*6.49999999999999)-2*COS(3*6.49999999999999)-COS(4*6.49999999999999) -> 25.45160848
A57: =(16 + 0)*(SIN(6.59999999999999)*SIN(6.59999999999999)*SIN(6.59999999999999)) -> 0.4838014121 | B57: =(13 + 0) * COS(6.59999999999999)-5*COS(2*6.59999999999999)-2*COS(3*6.59999999999999)-COS(4*6.59999999999999) -> 6.862062377 | C57: =(16 + 5)*(SIN(6.59999999999999)*SIN(6.59999999999999)*SIN(6.59999999999999)) -> 0.6349893534 | D57: =(13 + 5) * COS(6.59999999999999)-5*COS(2*6.59999999999999)-2*COS(3*6.59999999999999)-COS(4*6.59999999999999) -> 11.61322534 | E57: =(16 + 10)*(SIN(6.59999999999999)*SIN(6.59999999999999)*SIN(6.59999999999999)) -> 0.7861772947 | F57: =(13 + 10) * COS(6.59999999999999)-5*COS(2*6.59999999999999)-2*COS(3*6.59999999999999)-COS(4*6.59999999999999) -> 16.3643883 | G57: =(16 + 15)*(SIN(6.59999999999999)*SIN(6.59999999999999)*SIN(6.59999999999999)) -> 0.937365236 | H57: =(13 + 15) * COS(6.59999999999999)-5*COS(2*6.59999999999999)-2*COS(3*6.59999999999999)-COS(4*6.59999999999999) -> 21.11555126 | I57: =(16 + 20)*(SIN(6.59999999999999)*SIN(6.59999999999999)*SIN(6.59999999999999)) -> 1.088553177 | J57: =(13 + 20) * COS(6.59999999999999)-5*COS(2*6.59999999999999)-2*COS(3*6.59999999999999)-COS(4*6.59999999999999) -> 25.86671422
A58: =(16 + 0)*(SIN(6.69999999999999)*SIN(6.69999999999999)*SIN(6.69999999999999)) -> 1.061700833 | B58: =(13 + 0) * COS(6.69999999999999)-5*COS(2*6.69999999999999)-2*COS(3*6.69999999999999)-COS(4*6.69999999999999) -> 7.992526611 | C58: =(16 + 5)*(SIN(6.69999999999999)*SIN(6.69999999999999)*SIN(6.69999999999999)) -> 1.393482343 | D58: =(13 + 5) * COS(6.69999999999999)-5*COS(2*6.69999999999999)-2*COS(3*6.69999999999999)-COS(4*6.69999999999999) -> 12.56444235 | E58: =(16 + 10)*(SIN(6.69999999999999)*SIN(6.69999999999999)*SIN(6.69999999999999)) -> 1.725263853 | F58: =(13 + 10) * COS(6.69999999999999)-5*COS(2*6.69999999999999)-2*COS(3*6.69999999999999)-COS(4*6.69999999999999) -> 17.13635809 | G58: =(16 + 15)*(SIN(6.69999999999999)*SIN(6.69999999999999)*SIN(6.69999999999999)) -> 2.057045364 | H58: =(13 + 15) * COS(6.69999999999999)-5*COS(2*6.69999999999999)-2*COS(3*6.69999999999999)-COS(4*6.69999999999999) -> 21.70827383 | I58: =(16 + 20)*(SIN(6.69999999999999)*SIN(6.69999999999999)*SIN(6.69999999999999)) -> 2.388826874 | J58: =(13 + 20) * COS(6.69999999999999)-5*COS(2*6.69999999999999)-2*COS(3*6.69999999999999)-COS(4*6.69999999999999) -> 26.28018958
A59: =(16 + 0)*(SIN(6.79999999999999)*SIN(6.79999999999999)*SIN(6.79999999999999)) -> 1.930188613 | B59: =(13 + 0) * COS(6.79999999999999)-5*COS(2*6.79999999999999)-2*COS(3*6.79999999999999)-COS(4*6.79999999999999) -> 9.179263774 | C59: =(16 + 5)*(SIN(6.79999999999999)*SIN(6.79999999999999)*SIN(6.79999999999999)) -> 2.533372555 | D59: =(13 + 5) * COS(6.79999999999999)-5*COS(2*6.79999999999999)-2*COS(3*6.79999999999999)-COS(4*6.79999999999999) -> 13.52625123 | E59: =(16 + 10)*(SIN(6.79999999999999)*SIN(6.79999999999999)*SIN(6.79999999999999)) -> 3.136556496 | F59: =(13 + 10) * COS(6.79999999999999)-5*COS(2*6.79999999999999)-2*COS(3*6.79999999999999)-COS(4*6.79999999999999) -> 17.87323868 | G59: =(16 + 15)*(SIN(6.79999999999999)*SIN(6.79999999999999)*SIN(6.79999999999999)) -> 3.739740438 | H59: =(13 + 15) * COS(6.79999999999999)-5*COS(2*6.79999999999999)-2*COS(3*6.79999999999999)-COS(4*6.79999999999999) -> 22.22022613 | I59: =(16 + 20)*(SIN(6.79999999999999)*SIN(6.79999999999999)*SIN(6.79999999999999)) -> 4.342924379 | J59: =(13 + 20) * COS(6.79999999999999)-5*COS(2*6.79999999999999)-2*COS(3*6.79999999999999)-COS(4*6.79999999999999) -> 26.56721358
A60: =(16 + 0)*(SIN(6.89999999999999)*SIN(6.89999999999999)*SIN(6.89999999999999)) -> 3.096666275 | B60: =(13 + 0) * COS(6.89999999999999)-5*COS(2*6.89999999999999)-2*COS(3*6.89999999999999)-COS(4*6.89999999999999) -> 10.28350915 | C60: =(16 + 5)*(SIN(6.89999999999999)*SIN(6.89999999999999)*SIN(6.89999999999999)) -> 4.064374485 | D60: =(13 + 5) * COS(6.89999999999999)-5*COS(2*6.89999999999999)-2*COS(3*6.89999999999999)-COS(4*6.89999999999999) -> 14.36213465 | E60: =(16 + 10)*(SIN(6.89999999999999)*SIN(6.89999999999999)*SIN(6.89999999999999)) -> 5.032082696 | F60: =(13 + 10) * COS(6.89999999999999)-5*COS(2*6.89999999999999)-2*COS(3*6.89999999999999)-COS(4*6.89999999999999) -> 18.44076015 | G60: =(16 + 15)*(SIN(6.89999999999999)*SIN(6.89999999999999)*SIN(6.89999999999999)) -> 5.999790907 | H60: =(13 + 15) * COS(6.89999999999999)-5*COS(2*6.89999999999999)-2*COS(3*6.89999999999999)-COS(4*6.89999999999999) -> 22.51938565 | I60: =(16 + 20)*(SIN(6.89999999999999)*SIN(6.89999999999999)*SIN(6.89999999999999)) -> 6.967499118 | J60: =(13 + 20) * COS(6.89999999999999)-5*COS(2*6.89999999999999)-2*COS(3*6.89999999999999)-COS(4*6.89999999999999) -> 26.59801115
A61: =(16 + 0)*(SIN(6.99999999999999)*SIN(6.99999999999999)*SIN(6.99999999999999)) -> 4.53721663 | B61: =(13 + 0) * COS(6.99999999999999)-5*COS(2*6.99999999999999)-2*COS(3*6.99999999999999)-COS(4*6.99999999999999) -> 11.1751076 | C61: =(16 + 5)*(SIN(6.99999999999999)*SIN(6.99999999999999)*SIN(6.99999999999999)) -> 5.955096828 | D61: =(13 + 5) * COS(6.99999999999999)-5*COS(2*6.99999999999999)-2*COS(3*6.99999999999999)-COS(4*6.99999999999999) -> 14.94461887 | E61: =(16 + 10)*(SIN(6.99999999999999)*SIN(6.99999999999999)*SIN(6.99999999999999)) -> 7.372977025 | F61: =(13 + 10) * COS(6.99999999999999)-5*COS(2*6.99999999999999)-2*COS(3*6.99999999999999)-COS(4*6.99999999999999) -> 18.71413015 | G61: =(16 + 15)*(SIN(6.99999999999999)*SIN(6.99999999999999)*SIN(6.99999999999999)) -> 8.790857222 | H61: =(13 + 15) * COS(6.99999999999999)-5*COS(2*6.99999999999999)-2*COS(3*6.99999999999999)-COS(4*6.99999999999999) -> 22.48364142 | I61: =(16 + 20)*(SIN(6.99999999999999)*SIN(6.99999999999999)*SIN(6.99999999999999)) -> 10.20873742 | J61: =(13 + 20) * COS(6.99999999999999)-5*COS(2*6.99999999999999)-2*COS(3*6.99999999999999)-COS(4*6.99999999999999) -> 26.25315269
A62: =(16 + 0)*(SIN(7.09999999999999)*SIN(7.09999999999999)*SIN(7.09999999999999)) -> 6.197938097 | B62: =(13 + 0) * COS(7.09999999999999)-5*COS(2*7.09999999999999)-2*COS(3*7.09999999999999)-COS(4*7.09999999999999) -> 11.74620847 | C62: =(16 + 5)*(SIN(7.09999999999999)*SIN(7.09999999999999)*SIN(7.09999999999999)) -> 8.134793752 | D62: =(13 + 5) * COS(7.09999999999999)-5*COS(2*7.09999999999999)-2*COS(3*7.09999999999999)-COS(4*7.09999999999999) -> 15.1689418 | E62: =(16 + 10)*(SIN(7.09999999999999)*SIN(7.09999999999999)*SIN(7.09999999999999)) -> 10.07164941 | F62: =(13 + 10) * COS(7.09999999999999)-5*COS(2*7.09999999999999)-2*COS(3*7.09999999999999)-COS(4*7.09999999999999) -> 18.59167513 | G62: =(16 + 15)*(SIN(7.09999999999999)*SIN(7.09999999999999)*SIN(7.09999999999999)) -> 12.00850506 | H62: =(13 + 15) * COS(7.09999999999999)-5*COS(2*7.09999999999999)-2*COS(3*7.09999999999999)-COS(4*7.09999999999999) -> 22.01440847 | I62: =(16 + 20)*(SIN(7.09999999999999)*SIN(7.09999999999999)*SIN(7.09999999999999)) -> 13.94536072 | J62: =(13 + 20) * COS(7.09999999999999)-5*COS(2*7.09999999999999)-2*COS(3*7.09999999999999)-COS(4*7.09999999999999) -> 25.4371418
A63: =(16 + 0)*(SIN(7.19999999999999)*SIN(7.19999999999999)*SIN(7.19999999999999)) -> 7.9990124 | B63: =(13 + 0) * COS(7.19999999999999)-5*COS(2*7.19999999999999)-2*COS(3*7.19999999999999)-COS(4*7.19999999999999) -> 11.9215873 | C63: =(16 + 5)*(SIN(7.19999999999999)*SIN(7.19999999999999)*SIN(7.19999999999999)) -> 10.49870377 | D63: =(13 + 5) * COS(7.19999999999999)-5*COS(2*7.19999999999999)-2*COS(3*7.19999999999999)-COS(4*7.19999999999999) -> 14.96334388 | E63: =(16 + 10)*(SIN(7.19999999999999)*SIN(7.19999999999999)*SIN(7.19999999999999)) -> 12.99839515 | F63: =(13 + 10) * COS(7.19999999999999)-5*COS(2*7.19999999999999)-2*COS(3*7.19999999999999)-COS(4*7.19999999999999) -> 18.00510045 | G63: =(16 + 15)*(SIN(7.19999999999999)*SIN(7.19999999999999)*SIN(7.19999999999999)) -> 15.49808652 | H63: =(13 + 15) * COS(7.19999999999999)-5*COS(2*7.19999999999999)-2*COS(3*7.19999999999999)-COS(4*7.19999999999999) -> 21.04685702 | I63: =(16 + 20)*(SIN(7.19999999999999)*SIN(7.19999999999999)*SIN(7.19999999999999)) -> 17.9977779 | J63: =(13 + 20) * COS(7.19999999999999)-5*COS(2*7.19999999999999)-2*COS(3*7.19999999999999)-COS(4*7.19999999999999) -> 24.08861359
A64: =(16 + 0)*(SIN(7.29999999999999)*SIN(7.29999999999999)*SIN(7.29999999999999)) -> 9.841149783 | B64: =(13 + 0) * COS(7.29999999999999)-5*COS(2*7.29999999999999)-2*COS(3*7.29999999999999)-COS(4*7.29999999999999) -> 11.66443235 | C64: =(16 + 5)*(SIN(7.29999999999999)*SIN(7.29999999999999)*SIN(7.29999999999999)) -> 12.91650909 | D64: =(13 + 5) * COS(7.29999999999999)-5*COS(2*7.29999999999999)-2*COS(3*7.29999999999999)-COS(4*7.29999999999999) -> 14.29481994 | E64: =(16 + 10)*(SIN(7.29999999999999)*SIN(7.29999999999999)*SIN(7.29999999999999)) -> 15.9918684 | F64: =(13 + 10) * COS(7.29999999999999)-5*COS(2*7.29999999999999)-2*COS(3*7.29999999999999)-COS(4*7.29999999999999) -> 16.92520753 | G64: =(16 + 15)*(SIN(7.29999999999999)*SIN(7.29999999999999)*SIN(7.29999999999999)) -> 19.0672277 | H64: =(13 + 15) * COS(7.29999999999999)-5*COS(2*7.29999999999999)-2*COS(3*7.29999999999999)-COS(4*7.29999999999999) -> 19.55559511 | I64: =(16 + 20)*(SIN(7.29999999999999)*SIN(7.29999999999999)*SIN(7.29999999999999)) -> 22.14258701 | J64: =(13 + 20) * COS(7.29999999999999)-5*COS(2*7.29999999999999)-2*COS(3*7.29999999999999)-COS(4*7.29999999999999) -> 22.1859827
A65: =(16 + 0)*(SIN(7.39999999999999)*SIN(7.39999999999999)*SIN(7.39999999999999)) -> 11.61384283 | B65: =(13 + 0) * COS(7.39999999999999)-5*COS(2*7.39999999999999)-2*COS(3*7.39999999999999)-COS(4*7.39999999999999) -> 10.97709972 | C65: =(16 + 5)*(SIN(7.39999999999999)*SIN(7.39999999999999)*SIN(7.39999999999999)) -> 15.24316872 | D65: =(13 + 5) * COS(7.39999999999999)-5*COS(2*7.39999999999999)-2*COS(3*7.39999999999999)-COS(4*7.39999999999999) -> 13.16983636 | E65: =(16 + 10)*(SIN(7.39999999999999)*SIN(7.39999999999999)*SIN(7.39999999999999)) -> 18.8724946 | F65: =(13 + 10) * COS(7.39999999999999)-5*COS(2*7.39999999999999)-2*COS(3*7.39999999999999)-COS(4*7.39999999999999) -> 15.362573 | G65: =(16 + 15)*(SIN(7.39999999999999)*SIN(7.39999999999999)*SIN(7.39999999999999)) -> 22.50182049 | H65: =(13 + 15) * COS(7.39999999999999)-5*COS(2*7.39999999999999)-2*COS(3*7.39999999999999)-COS(4*7.39999999999999) -> 17.55530963 | I65: =(16 + 20)*(SIN(7.39999999999999)*SIN(7.39999999999999)*SIN(7.39999999999999)) -> 26.13114637 | J65: =(13 + 20) * COS(7.39999999999999)-5*COS(2*7.39999999999999)-2*COS(3*7.39999999999999)-COS(4*7.39999999999999) -> 19.74804627
A66: =(16 + 0)*(SIN(7.49999999999999)*SIN(7.49999999999999)*SIN(7.49999999999999)) -> 13.20469777 | B66: =(13 + 0) * COS(7.49999999999999)-5*COS(2*7.49999999999999)-2*COS(3*7.49999999999999)-COS(4*7.49999999999999) -> 9.897056526 | C66: =(16 + 5)*(SIN(7.49999999999999)*SIN(7.49999999999999)*SIN(7.49999999999999)) -> 17.33116582 | D66: =(13 + 5) * COS(7.49999999999999)-5*COS(2*7.49999999999999)-2*COS(3*7.49999999999999)-COS(4*7.49999999999999) -> 11.63023312 | E66: =(16 + 10)*(SIN(7.49999999999999)*SIN(7.49999999999999)*SIN(7.49999999999999)) -> 21.45763388 | F66: =(13 + 10) * COS(7.49999999999999)-5*COS(2*7.49999999999999)-2*COS(3*7.49999999999999)-COS(4*7.49999999999999) -> 13.3634097 | G66: =(16 + 15)*(SIN(7.49999999999999)*SIN(7.49999999999999)*SIN(7.49999999999999)) -> 25.58410193 | H66: =(13 + 15) * COS(7.49999999999999)-5*COS(2*7.49999999999999)-2*COS(3*7.49999999999999)-COS(4*7.49999999999999) -> 15.09658629 | I66: =(16 + 20)*(SIN(7.49999999999999)*SIN(7.49999999999999)*SIN(7.49999999999999)) -> 29.71056999 | J66: =(13 + 20) * COS(7.49999999999999)-5*COS(2*7.49999999999999)-2*COS(3*7.49999999999999)-COS(4*7.49999999999999) -> 16.82976288
A67: =(16 + 0)*(SIN(7.59999999999999)*SIN(7.59999999999999)*SIN(7.59999999999999)) -> 14.50901509 | B67: =(13 + 0) * COS(7.59999999999999)-5*COS(2*7.59999999999999)-2*COS(3*7.59999999999999)-COS(4*7.59999999999999) -> 8.48888999 | C67: =(16 + 5)*(SIN(7.59999999999999)*SIN(7.59999999999999)*SIN(7.59999999999999)) -> 19.0430823 | D67: =(13 + 5) * COS(7.59999999999999)-5*COS(2*7.59999999999999)-2*COS(3*7.59999999999999)-COS(4*7.59999999999999) -> 9.745189203 | E67: =(16 + 10)*(SIN(7.59999999999999)*SIN(7.59999999999999)*SIN(7.59999999999999)) -> 23.57714952 | F67: =(13 + 10) * COS(7.59999999999999)-5*COS(2*7.59999999999999)-2*COS(3*7.59999999999999)-COS(4*7.59999999999999) -> 11.00148842 | G67: =(16 + 15)*(SIN(7.59999999999999)*SIN(7.59999999999999)*SIN(7.59999999999999)) -> 28.11121673 | H67: =(13 + 15) * COS(7.59999999999999)-5*COS(2*7.59999999999999)-2*COS(3*7.59999999999999)-COS(4*7.59999999999999) -> 12.25778763 | I67: =(16 + 20)*(SIN(7.59999999999999)*SIN(7.59999999999999)*SIN(7.59999999999999)) -> 32.64528395 | J67: =(13 + 20) * COS(7.59999999999999)-5*COS(2*7.59999999999999)-2*COS(3*7.59999999999999)-COS(4*7.59999999999999) -> 13.51408684
A68: =(16 + 0)*(SIN(7.69999999999999)*SIN(7.69999999999999)*SIN(7.69999999999999)) -> 15.43876828 | B68: =(13 + 0) * COS(7.69999999999999)-5*COS(2*7.69999999999999)-2*COS(3*7.69999999999999)-COS(4*7.69999999999999) -> 6.833766268 | C68: =(16 + 5)*(SIN(7.69999999999999)*SIN(7.69999999999999)*SIN(7.69999999999999)) -> 20.26338336 | D68: =(13 + 5) * COS(7.69999999999999)-5*COS(2*7.69999999999999)-2*COS(3*7.69999999999999)-COS(4*7.69999999999999) -> 7.600635578 | E68: =(16 + 10)*(SIN(7.69999999999999)*SIN(7.69999999999999)*SIN(7.69999999999999)) -> 25.08799845 | F68: =(13 + 10) * COS(7.69999999999999)-5*COS(2*7.69999999999999)-2*COS(3*7.69999999999999)-COS(4*7.69999999999999) -> 8.367504889 | G68: =(16 + 15)*(SIN(7.69999999999999)*SIN(7.69999999999999)*SIN(7.69999999999999)) -> 29.91261354 | H68: =(13 + 15) * COS(7.69999999999999)-5*COS(2*7.69999999999999)-2*COS(3*7.69999999999999)-COS(4*7.69999999999999) -> 9.134374199 | I68: =(16 + 20)*(SIN(7.69999999999999)*SIN(7.69999999999999)*SIN(7.69999999999999)) -> 34.73722863 | J68: =(13 + 20) * COS(7.69999999999999)-5*COS(2*7.69999999999999)-2*COS(3*7.69999999999999)-COS(4*7.69999999999999) -> 9.901243509
A69: =(16 + 0)*(SIN(7.79999999999999)*SIN(7.79999999999999)*SIN(7.79999999999999)) -> 15.93018238 | B69: =(13 + 0) * COS(7.79999999999999)-5*COS(2*7.79999999999999)-2*COS(3*7.79999999999999)-COS(4*7.79999999999999) -> 5.018006221 | C69: =(16 + 5)*(SIN(7.79999999999999)*SIN(7.79999999999999)*SIN(7.79999999999999)) -> 20.90836437 | D69: =(13 + 5) * COS(7.79999999999999)-5*COS(2*7.79999999999999)-2*COS(3*7.79999999999999)-COS(4*7.79999999999999) -> 5.287783324 | E69: =(16 + 10)*(SIN(7.79999999999999)*SIN(7.79999999999999)*SIN(7.79999999999999)) -> 25.88654636 | F69: =(13 + 10) * COS(7.79999999999999)-5*COS(2*7.79999999999999)-2*COS(3*7.79999999999999)-COS(4*7.79999999999999) -> 5.557560427 | G69: =(16 + 15)*(SIN(7.79999999999999)*SIN(7.79999999999999)*SIN(7.79999999999999)) -> 30.86472836 | H69: =(13 + 15) * COS(7.79999999999999)-5*COS(2*7.79999999999999)-2*COS(3*7.79999999999999)-COS(4*7.79999999999999) -> 5.827337529 | I69: =(16 + 20)*(SIN(7.79999999999999)*SIN(7.79999999999999)*SIN(7.79999999999999)) -> 35.84291035 | J69: =(13 + 20) * COS(7.79999999999999)-5*COS(2*7.79999999999999)-2*COS(3*7.79999999999999)-COS(4*7.79999999999999) -> 6.097114632
A70: =(16 + 0)*(SIN(7.89999999999999)*SIN(7.89999999999999)*SIN(7.89999999999999)) -> 15.94923819 | B70: =(13 + 0) * COS(7.89999999999999)-5*COS(2*7.89999999999999)-2*COS(3*7.89999999999999)-COS(4*7.89999999999999) -> 3.122470191 | C70: =(16 + 5)*(SIN(7.89999999999999)*SIN(7.89999999999999)*SIN(7.89999999999999)) -> 20.93337512 | D70: =(13 + 5) * COS(7.89999999999999)-5*COS(2*7.89999999999999)-2*COS(3*7.89999999999999)-COS(4*7.89999999999999) -> 2.892459563 | E70: =(16 + 10)*(SIN(7.89999999999999)*SIN(7.89999999999999)*SIN(7.89999999999999)) -> 25.91751205 | F70: =(13 + 10) * COS(7.89999999999999)-5*COS(2*7.89999999999999)-2*COS(3*7.89999999999999)-COS(4*7.89999999999999) -> 2.662448935 | G70: =(16 + 15)*(SIN(7.89999999999999)*SIN(7.89999999999999)*SIN(7.89999999999999)) -> 30.90164898 | H70: =(13 + 15) * COS(7.89999999999999)-5*COS(2*7.89999999999999)-2*COS(3*7.89999999999999)-COS(4*7.89999999999999) -> 2.432438307 | I70: =(16 + 20)*(SIN(7.89999999999999)*SIN(7.89999999999999)*SIN(7.89999999999999)) -> 35.88578592 | J70: =(13 + 20) * COS(7.89999999999999)-5*COS(2*7.89999999999999)-2*COS(3*7.89999999999999)-COS(4*7.89999999999999) -> 2.202427679
A71: =(16 + 0)*(SIN(7.99999999999999)*SIN(7.99999999999999)*SIN(7.99999999999999)) -> 15.49461241 | B71: =(13 + 0) * COS(7.99999999999999)-5*COS(2*7.99999999999999)-2*COS(3*7.99999999999999)-COS(4*7.99999999999999) -> 1.214215587 | C71: =(16 + 5)*(SIN(7.99999999999999)*SIN(7.99999999999999)*SIN(7.99999999999999)) -> 20.33667878 | D71: =(13 + 5) * COS(7.99999999999999)-5*COS(2*7.99999999999999)-2*COS(3*7.99999999999999)-COS(4*7.99999999999999) -> 0.4867154179 | E71: =(16 + 10)*(SIN(7.99999999999999)*SIN(7.99999999999999)*SIN(7.99999999999999)) -> 25.17874516 | F71: =(13 + 10) * COS(7.99999999999999)-5*COS(2*7.99999999999999)-2*COS(3*7.99999999999999)-COS(4*7.99999999999999) -> -0.2407847512 | G71: =(16 + 15)*(SIN(7.99999999999999)*SIN(7.99999999999999)*SIN(7.99999999999999)) -> 30.02081154 | H71: =(13 + 15) * COS(7.99999999999999)-5*COS(2*7.99999999999999)-2*COS(3*7.99999999999999)-COS(4*7.99999999999999) -> -0.9682849202 | I71: =(16 + 20)*(SIN(7.99999999999999)*SIN(7.99999999999999)*SIN(7.99999999999999)) -> 34.86287792 | J71: =(13 + 20) * COS(7.99999999999999)-5*COS(2*7.99999999999999)-2*COS(3*7.99999999999999)-COS(4*7.99999999999999) -> -1.695785089
